Workbook

Sheet TR131
A1: Indication of FFR results for Tender Round 131, accepted tenders will be officially notified via an issued acceptance letter.
A2: Tender Ref | D2: Company Name | E2: Tendered Unit (BMU/Unit ID) | F2: TO connection / DNO connection | G2: Generation Type | H2: Start Date | I2: End Date | J2: Tendered Period (dd.mm.yy - dd.mm.yy) | K2: Applicable FFR Capability Data Table | L2: Tendered Frames per Service Day | U2: Tendered Prices*** | X2: BMUs Only - Applicable Balancing Service (i.e. ABSVD Imbalance) YES/NO | Y2: Dynamic Providers Only | AC2: Dynamic Providers only | AJ2: Please indicate as per detail change provision if you are adding volume | AK2: Please state the accepted tender that you are stacking onto | AL2: Please state if this is an all or nothing bid. Clearly reference what lines are included in each all or nothing bid | AM2: Please indicate if this is a mutually exclusive tender | AN2: Non-Dynamic Providers | AP2: Comments
L3: Working Days (Mon-Fri) | O3: Saturdays | R3: Sundays/Bank Holidays | U3: Availability Fee (£/h) | V3: Nomination Fee (£/h) | W3: Window Initiation Fee (£/window) | Y3: Maximum Part Load Point (MW) | Z3: Minimum Part Load Point (MW) | AA3: Minimum MEL (MW) | AB3: Maximum SEL (MW) | AN3: Volume of Response Tendered
B4: Status | C4: Rejection Codes | L4: From | M4: To | N4: Duration (h) | O4: From | P4: To | Q4: Duration (h) | R4: From | S4: To | T4: Duration (h) | AC4: Primary Response (max.) @ 0.2Hz (MW) | AD4: Primary Response (max.) @ 0.5Hz (MW) | AE4: Primary Response (max.) @ 0.8Hz (MW) | AF4: Secondary Response (max.) @ 0.2/0.2Hz (MW) | AG4: Secondary Response (max.) @ 0.5/0.5Hz (MW) | AH4: High Frequency Response (max.) @ 0.2Hz (MW) | AI4: High Frequency Response (max.) @ 0.5Hz (MW) | AN4: Automatic Response Energy Deliverable by 10s (MW) | AO4: Automatic Response Energy Deliverable by 30s (MW)
A5: 131 | D5: Example Company | E5: Ex-FFR-1 | F5: TO connection | G5: Wind | H5: =#REF! ->  | I5: =#REF! ->  | J5: =IFERROR(TEXT(H5,"DD.MM.YY")&" - "&TEXT(I5,"DD.MM.YY")&" ("&DATEDIF(H5,I5+1,"m")&" months)","Tender End Date is Before Start Date") -> Tender End Date is Before Start Date | K5: As per FFR framework agreement | L5: 2300 | M5: 700 | N5: =IF(L5>M5, (2400-L5+M5)/100, IF(AND(L5="",M5="",L5=M5), "", IF(L5=M5,24,(M5-L5)/100))) -> 8 | O5: 2300 | P5: 700 | Q5: =IF(O5>P5, (2400-O5+P5)/100, IF(AND(O5="",P5="",O5=P5), "", IF(O5=P5,24,(P5-O5)/100))) -> 8 | R5: 2300 | S5: 700 | T5: =IF(R5>S5, (2400-R5+S5)/100, IF(AND(R5="",S5="",R5=S5), "", IF(R5=S5,24,(S5-R5)/100))) -> 8 | U5: 100 | V5: 600 | W5: - | X5: - | Y5: - | Z5: - | AA5: - | AB5: - | AC5: - | AD5: - | AE5: - | AF5: - | AG5: - | AH5: - | AI5: - | AJ5: - | AK5: - | AN5: - | AO5: - | AP5: -
A6: 131 | D6: Example Company | E6: =E5 -> Ex-FFR-1 | F6: DNO connection | G6: Gas | H6: =H5 ->  | I6: =I5 ->  | J6: =IFERROR(TEXT(H6,"DD.MM.YY")&" - "&TEXT(I6,"DD.MM.YY")&" ("&DATEDIF(H6,I6+1,"m")&" months)","Tender End Date is Before Start Date") -> Tender End Date is Before Start Date | K6: As per FFR framework agreement | L6: 700 | M6: 2300 | N6: 16 | O6: 700 | P6: 2300 | Q6: 16 | R6: 700 | S6: 2300 | T6: 16 | U6: 600 | V6: 100 | W6: - | X6: - | Y6: - | Z6: - | AA6: - | AB6: - | AC6: - | AD6: - | AE6: - | AF6: - | AG6: - | AH6: - | AI6: - | AJ6: - | AK6: - | AN6: - | AO6: - | AP6: -
A7: =A5+0.001 -> 131.001 | B7: Accepted | C7: NA | D7: EDF Energy Customers Limited | E7: AG-AEDF01 | F7: DNO connection | G7: DSF: Storage (for export) | H7: 2020-11-30 | I7: 2020-12-31 | J7: 30.11.20 - 31.12.20 (1 months) | K7: As per FFR framework agreement | L7: 2300 | M7: 2300 | N7: =IF(L7>M7, (2400-L7+M7)/100, IF(AND(L7="",M7="",L7=M7), "", IF(L7=M7,24,(M7-L7)/100))) -> 24 | O7: 2300 | P7: 2300 | Q7: =IF(O7>P7, (2400-O7+P7)/100, IF(AND(O7="",P7="",O7=P7), "", IF(O7=P7,24,(P7-O7)/100))) -> 24 | R7: 2300 | S7: 2300 | T7: =IF(R7>S7, (2400-R7+S7)/100, IF(AND(R7="",S7="",R7=S7), "", IF(R7=S7,24,(S7-R7)/100))) -> 24 | U7: 74.82 | AC7: 2.4 | AD7: 6 | AE7: 6 | AF7: 2.4 | AG7: 6 | AH7: 2.4 | AI7: 6
A8: =A7+0.001 -> 131.002 | B8: Accepted | C8: NA | D8: EDF Energy Customers Limited | E8: AG -GEDF01 | F8: DNO connection | G8: DSF: Storage (for export) | H8: 2020-11-30 | I8: 2020-12-31 | J8: 30.11.20 - 31.12.20 (1 months) | K8: As per FFR framework agreement | L8: 2300 | M8: 700 | N8: =IF(L8>M8, (2400-L8+M8)/100, IF(AND(L8="",M8="",L8=M8), "", IF(L8=M8,24,(M8-L8)/100))) -> 8 | O8: 2300 | P8: 700 | Q8: =IF(O8>P8, (2400-O8+P8)/100, IF(AND(O8="",P8="",O8=P8), "", IF(O8=P8,24,(P8-O8)/100))) -> 8 | R8: 2300 | S8: 700 | T8: =IF(R8>S8, (2400-R8+S8)/100, IF(AND(R8="",S8="",R8=S8), "", IF(R8=S8,24,(S8-R8)/100))) -> 8 | U8: 170 | AC8: 8 | AD8: 20 | AE8: 20 | AF8: 8 | AG8: 20 | AH8: 8 | AI8: 20
A9: 131.003 | B9: Accepted | C9: NA | D9: EDF Energy Customers Limited | E9: AG -GEDF01 | F9: DNO connection | G9: DSF: Storage (for export) | H9: 2020-12-01 | I9: 2020-12-31 | J9: 01.12.20 - 31.12.20 (1 months) | K9: As per FFR framework agreement | L9: 700 | M9: 1500 | N9: 8 | O9: 700 | P9: 1500 | Q9: 8 | R9: 700 | S9: 1500 | T9: 8 | U9: 195 | AC9: 8 | AD9: 20 | AE9: 20 | AF9: 8 | AG9: 20 | AH9: 8 | AI9: 20
A10: 131.004 | B10: Accepted | C10: NA | D10: EDF Energy Customers Limited | E10: AG -GEDF01 | F10: DNO connection | G10: DSF: Storage (for export) | H10: 2020-12-01 | I10: 2020-12-31 | J10: 01.12.20 - 31.12.20 (1 months) | K10: As per FFR framework agreement | L10: 1500 | M10: 2300 | N10: 8 | O10: 1500 | P10: 2300 | Q10: 8 | R10: 1500 | S10: 2300 | T10: 8 | U10: 239 | AC10: 8 | AD10: 20 | AE10: 20 | AF10: 8 | AG10: 20 | AH10: 8 | AI10: 20
A11: 131.005 | B11: Accepted | C11: NA | D11: EDF Energy Customers Limited | E11: AG -GEDF02 | F11: DNO connection | G11: DSF: Storage (for export) | H11: 2020-11-30 | I11: 2020-12-31 | J11: 30.11.20 - 31.12.20 (1 months) | K11: As per FFR framework agreement | L11: 2300 | M11: 700 | N11: 8 | O11: 2300 | P11: 700 | Q11: 8 | R11: 2300 | S11: 700 | T11: 8 | U11: 180 | AC11: 8 | AD11: 20 | AE11: 20 | AF11: 8 | AG11: 20 | AH11: 8 | AI11: 20
A12: 131.006 | B12: Accepted | C12: NA | D12: EDF Energy Customers Limited | E12: AG -GEDF02 | F12: DNO connection | G12: DSF: Storage (for export) | H12: 2020-12-01 | I12: 2020-12-31 | J12: 01.12.20 - 31.12.20 (1 months) | K12: As per FFR framework agreement | L12: 700 | M12: 1500 | N12: 8 | O12: 700 | P12: 1500 | Q12: 8 | R12: 700 | S12: 1500 | T12: 8 | U12: 205 | AC12: 8 | AD12: 20 | AE12: 20 | AF12: 8 | AG12: 20 | AH12: 8 | AI12: 20
A13: 131.007 | B13: Accepted | C13: NA | D13: EDF Energy Customers Limited | E13: AG -GEDF02 | F13: DNO connection | G13: DSF: Storage (for export) | H13: 2020-12-01 | I13: 2020-12-31 | J13: 01.12.20 - 31.12.20 (1 months) | K13: As per FFR framework agreement | L13: 1500 | M13: 2300 | N13: 8 | O13: 1500 | P13: 2300 | Q13: 8 | R13: 1500 | S13: 2300 | T13: 8 | U13: 242 | AC13: 8 | AD13: 20 | AE13: 20 | AF13: 8 | AG13: 20 | AH13: 8 | AI13: 20
A14: 131.008 | B14: Accepted | C14: NA | D14: EDF Energy Customers Limited | E14: EDFE-2 | F14: DNO connection | G14: DSF: Storage (for export) | H14: 2020-11-30 | I14: 2020-12-31 | J14: 30.11.20 - 31.12.20 (1 months) | K14: As per FFR framework agreement | L14: 2300 | M14: 2300 | N14: 24 | O14: 2300 | P14: 2300 | Q14: 24 | R14: 2300 | S14: 2300 | T14: 24 | U14: 94.88 | AC14: 3.2 | AD14: 8 | AE14: 8 | AF14: 3.2 | AG14: 8 | AH14: 3.2 | AI14: 8
A15: 131.009 | B15: Accepted | C15: NA | D15: EDF Energy Customers Limited | E15: EDFE-6 | F15: DNO connection | G15: DSF: Storage (for export) | H15: 2020-11-30 | I15: 2020-12-31 | J15: 30.11.20 - 31.12.20 (1 months) | K15: As per FFR framework agreement | L15: 2300 | M15: 2300 | N15: 24 | O15: 2300 | P15: 2300 | Q15: 24 | R15: 2300 | S15: 2300 | T15: 24 | U15: 78.26 | AC15: 2.8 | AD15: 7 | AE15: 7 | AF15: 2.8 | AG15: 7 | AH15: 2.8 | AI15: 7
A16: 131.01 | B16: Rejected | C16: 2 | D16: EDF Energy Customers Limited | E16: EDFE-7 | F16: DNO connection | G16: DSF: Storage (for export) | H16: 2020-11-30 | I16: 2020-12-31 | J16: 30.11.20 - 31.12.20 (1 months) | K16: As per FFR framework agreement | L16: 2300 | M16: 2300 | N16: 24 | O16: 2300 | P16: 2300 | Q16: 24 | R16: 2300 | S16: 2300 | T16: 24 | U16: 941.29 | AC16: 19.6 | AD16: 49 | AE16: 49 | AF16: 19.6 | AG16: 49 | AH16: 15.6 | AI16: 39
A17: 131.011 | B17: Rejected | C17: 2 | D17: Centrica Brigg Ltd | E17: ROOSB-1 | F17: DNO connection | G17: Battery | H17: 2020-11-30 | I17: 2020-12-31 | J17: 30.11.20 - 31.12.20 (1 months) | K17: As per FFR framework agreement | L17: 2300 | M17: 2300 | N17: =IF(L17>M17, (2400-L17+M17)/100, IF(AND(L17="",M17="",L17=M17), "", IF(L17=M17,24,(M17-L17)/100))) -> 24 | O17: 2300 | P17: 2300 | Q17: =IF(O17>P17, (2400-O17+P17)/100, IF(AND(O17="",P17="",O17=P17), "", IF(O17=P17,24,(P17-O17)/100))) -> 24 | R17: 2300 | S17: 2300 | T17: =IF(R17>S17, (2400-R17+S17)/100, IF(AND(R17="",S17="",R17=S17), "", IF(R17=S17,24,(S17-R17)/100))) -> 24 | U17: 798.53 | V17: 0 | W17: 0 | X17: Yes | Y17: 2 | Z17: 0 | AA17: 47 | AB17: 2 | AC17: 18.8 | AD17: 47 | AE17: 47 | AF17: 18.8 | AG17: 47 | AH17: 18.8 | AI17: 47
A18: 131.012 | B18: Rejected | C18: 4 | D18: REstore Flexpond UK Ltd | E18: REST-1 | F18: DNO connection | G18: Multiple Fuel Type | H18: 2020-11-30 | I18: 2020-12-31 | J18: 30.11.20 - 31.12.20 (1 months) | K18: As per FFR framework agreement | L18: 2300 | M18: 1500 | N18: =IF(L18>M18, (2400-L18+M18)/100, IF(AND(L18="",M18="",L18=M18), "", IF(L18=M18,24,(M18-L18)/100))) -> 16 | O18: 2300 | P18: 1500 | Q18: =IF(O18>P18, (2400-O18+P18)/100, IF(AND(O18="",P18="",O18=P18), "", IF(O18=P18,24,(P18-O18)/100))) -> 16 | R18: 2300 | S18: 1500 | T18: =IF(R18>S18, (2400-R18+S18)/100, IF(AND(R18="",S18="",R18=S18), "", IF(R18=S18,24,(S18-R18)/100))) -> 16 | U18: 46.5 | V18: 0 | W18: 0 | AC18: 2 | AD18: 5 | AE18: 5 | AF18: 2 | AG18: 5 | AH18: 2 | AI18: 5 | AL18: A | AM18: Mutually exclusive with C
A19: 131.013 | B19: Rejected | C19: 4 | D19: REstore Flexpond UK Ltd | E19: REST-1 | F19: DNO connection | G19: Multiple Fuel Type | H19: 2020-12-01 | I19: 2020-12-31 | J19: 01.12.20 - 31.12.20 (1 months) | K19: As per FFR framework agreement | L19: 1500 | M19: 2300 | N19: 8 | O19: 1500 | P19: 2300 | Q19: 8 | R19: 1500 | S19: 2300 | T19: 8 | U19: 57 | V19: 0 | W19: 0 | AC19: 2 | AD19: 5 | AE19: 5 | AF19: 2 | AG19: 5 | AH19: 2 | AI19: 5 | AL19: B | AM19: Mutually Exclusive with C
A20: 131.014 | B20: Accepted | C20: NA | D20: REstore Flexpond UK Ltd | E20: REST-1 | F20: DNO connection | G20: Multiple Fuel Type | H20: 2020-11-30 | I20: 2020-12-31 | J20: 30.11.20 - 31.12.20 (1 months) | K20: As per FFR framework agreement | L20: 2300 | M20: 2300 | N20: 24 | O20: 2300 | P20: 2300 | Q20: 24 | R20: 2300 | S20: 2300 | T20: 24 | U20: 49.95 | V20: 0 | W20: 0 | AC20: 2 | AD20: 5 | AE20: 5 | AF20: 2 | AG20: 5 | AH20: 2 | AI20: 5 | AL20: C | AM20: Mutually Exclusive with A & B
A21: 131.015 | B21: Rejected | C21: 2 | D21: BLOXWICH ENERGY STORAGE LIMITED | E21: ARNKB-1 | F21: DNO connection | G21: Battery | H21: 2020-11-30 | I21: 2020-12-31 | J21: 30.11.20 - 31.12.20 (1 months) | K21: as per FFR framework agreement | L21: 2300 | M21: 2300 | N21: =IF(L21>M21, (2400-L21+M21)/100, IF(AND(L21="",M21="",L21=M21), "", IF(L21=M21,24,(M21-L21)/100))) -> 24 | O21: 2300 | P21: 2300 | Q21: =IF(O21>P21, (2400-O21+P21)/100, IF(AND(O21="",P21="",O21=P21), "", IF(O21=P21,24,(P21-O21)/100))) -> 24 | R21: 2300 | S21: 2300 | T21: =IF(R21>S21, (2400-R21+S21)/100, IF(AND(R21="",S21="",R21=S21), "", IF(R21=S21,24,(S21-R21)/100))) -> 24 | U21: 764.56 | X21: YES | AC21: 15.2 | AD21: 38 | AE21: 38 | AF21: 15.2 | AG21: 38 | AH21: 15.2 | AI21: 38
A22: 131.016 | B22: Accepted | C22: NA | D22: Upside Energy | E22: UPEN-2 | F22: DNO connection | G22: DSF: Storage (onsite) | H22: 2020-11-30 | I22: 2020-12-31 | J22: 30.11.20 - 31.12.20 (1 months) | K22: as per FFR framework agreement | L22: 2300 | M22: 700 | N22: =IF(L22>M22, (2400-L22+M22)/100, IF(AND(L22="",M22="",L22=M22), "", IF(L22=M22,24,(M22-L22)/100))) -> 8 | O22: 2300 | P22: 700 | Q22: =IF(O22>P22, (2400-O22+P22)/100, IF(AND(O22="",P22="",O22=P22), "", IF(O22=P22,24,(P22-O22)/100))) -> 8 | R22: 2300 | S22: 700 | T22: =IF(R22>S22, (2400-R22+S22)/100, IF(AND(R22="",S22="",R22=S22), "", IF(R22=S22,24,(S22-R22)/100))) -> 8 | U22: 7.58 | AC22: 0.4 | AD22: 1 | AE22: 1 | AF22: 0.4 | AG22: 1 | AH22: 0.4 | AI22: 1
A23: 131.017 | B23: Accepted | C23: NA | D23: Upside Energy | E23: UPEN-2 | F23: DNO connection | G23: DSF: Storage (onsite) | H23: 2020-12-01 | I23: 2020-12-31 | J23: 01.12.20 - 31.12.20 (1 months) | K23: as per FFR framework agreement | L23: 700 | M23: 1100 | N23: =IF(L23>M23, (2400-L23+M23)/100, IF(AND(L23="",M23="",L23=M23), "", IF(L23=M23,24,(M23-L23)/100))) -> 4 | O23: 700 | P23: 1100 | Q23: =IF(O23>P23, (2400-O23+P23)/100, IF(AND(O23="",P23="",O23=P23), "", IF(O23=P23,24,(P23-O23)/100))) -> 4 | R23: 700 | S23: 1100 | T23: =IF(R23>S23, (2400-R23+S23)/100, IF(AND(R23="",S23="",R23=S23), "", IF(R23=S23,24,(S23-R23)/100))) -> 4 | U23: 7.58 | AC23: 0.4 | AD23: 1 | AE23: 1 | AF23: 0.4 | AG23: 1 | AH23: 0.4 | AI23: 1
A24: 131.018 | B24: Rejected | C24: 1.2 | D24: Drax Power Limited | E24: DRAX_01Z | F24: TO connection | G24: Bio Fuel | H24: 2020-11-30 | I24: 2020-12-31 | J24: 30.11.20 - 31.12.20 (1 months) | K24: As per FFR framework agreement | L24: 2300 | M24: 2300 | N24: =IF(L24>M24, (2400-L24+M24)/100, IF(AND(L24="",M24="",L24=M24), "", IF(L24=M24,24,(M24-L24)/100))) -> 24 | O24: 2300 | P24: 2300 | Q24: =IF(O24>P24, (2400-O24+P24)/100, IF(AND(O24="",P24="",O24=P24), "", IF(O24=P24,24,(P24-O24)/100))) -> 24 | R24: 2300 | S24: 2300 | T24: =IF(R24>S24, (2400-R24+S24)/100, IF(AND(R24="",S24="",R24=S24), "", IF(R24=S24,24,(S24-R24)/100))) -> 24 | U24: 249 | V24: 0 | X24: YES | Y24: 660 | Z24: 420 | AA24: 420 | AB24: 300 | AC24: 0 | AD24: 0 | AE24: 0 | AF24: 0 | AG24: 0 | AH24: 24 | AI24: 68 | AJ24: No | AK24: n/a | AM24: n/a
A25: 131.019 | B25: Rejected | C25: 2 | D25: First Hydro Company | E25: DINO-2 | F25: TO connection | G25: Hydro | H25: 2020-12-01 | I25: 2020-12-31 | J25: 01.12.20 - 31.12.20 (1 months) | K25: As per FFR framework agreement | L25: 1500 | M25: 1900 | N25: =IF(L25>M25, (2400-L25+M25)/100, IF(AND(L25="",M25="",L25=M25), "", IF(L25=M25,24,(M25-L25)/100))) -> 4 | O25: 1500 | P25: 1900 | Q25: =IF(O25>P25, (2400-O25+P25)/100, IF(AND(O25="",P25="",O25=P25), "", IF(O25=P25,24,(P25-O25)/100))) -> 4 | R25: 1500 | S25: 1900 | T25: =IF(R25>S25, (2400-R25+S25)/100, IF(AND(R25="",S25="",R25=S25), "", IF(R25=S25,24,(S25-R25)/100))) -> 4 | U25: 4500 | V25: 0 | W25: - | X25: NO | Y25: 150 | Z25: 150 | AA25: 288 | AB25: 150 | AC25: 68 | AD25: 170 | AE25: 170 | AF25: 107 | AG25: 170 | AH25: 0 | AI25: 0
A26: 131.02 | B26: Accepted | C26: NA | D26: GridBeyond Limited | E26: GBND-2 | F26: DNO connection | G26: DSF: Load response | H26: 2020-11-30 | I26: 2020-12-31 | J26: 30.11.20 - 31.12.20 (1 months) | K26: As per FFR framework agreement | L26: 2300 | M26: 700 | N26: 8 | U26: 172.8 | AC26: 7.2 | AD26: 18 | AE26: 18 | AF26: 7.2 | AG26: 18 | AH26: 7.2 | AI26: 18 | AL26: A
A27: =A26+0.001 -> 131.021 | B27: Accepted | C27: NA | D27: GridBeyond Limited | E27: GBND-2 | F27: DNO connection | G27: DSF: Load response | H27: 2020-12-01 | I27: 2020-12-31 | J27: 01.12.20 - 31.12.20 (1 months) | K27: As per FFR framework agreement | L27: 700 | M27: 1500 | N27: 8 | U27: 181.05 | AC27: 6.8 | AD27: 17 | AE27: 17 | AF27: 6.8 | AG27: 17 | AH27: 6.8 | AI27: 17 | AL27: B
A28: =A27+0.001 -> 131.022 | B28: Accepted | C28: NA | D28: GridBeyond Limited | E28: GBND-2 | F28: DNO connection | G28: DSF: Load response | H28: 2020-12-01 | I28: 2020-12-31 | J28: 01.12.20 - 31.12.20 (1 months) | K28: As per FFR framework agreement | L28: 1900 | M28: 2300 | N28: 4 | U28: 165.9 | AC28: 5.6 | AD28: 14 | AE28: 14 | AF28: 5.6 | AG28: 14 | AH28: 5.6 | AI28: 14 | AL28: C
A29: =A28+0.001 -> 131.023 | B29: Accepted | C29: NA | D29: GridBeyond Limited | E29: GBND-2 | F29: DNO connection | G29: DSF: Load response | H29: 2020-11-30 | I29: 2020-12-31 | J29: 30.11.20 - 31.12.20 (1 months) | K29: As per FFR framework agreement | O29: 2300 | P29: 700 | Q29: 8 | U29: 86.4 | AC29: 3.6 | AD29: 9 | AE29: 9 | AF29: 3.6 | AG29: 9 | AH29: 3.6 | AI29: 9 | AL29: A
A30: =A29+0.001 -> 131.024 | B30: Accepted | C30: NA | D30: GridBeyond Limited | E30: GBND-2 | F30: DNO connection | G30: DSF: Load response | H30: 2020-12-01 | I30: 2020-12-31 | J30: 01.12.20 - 31.12.20 (1 months) | K30: As per FFR framework agreement | O30: 700 | P30: 1500 | Q30: 8 | U30: 95.85 | AC30: 3.6 | AD30: 9 | AE30: 9 | AF30: 3.6 | AG30: 9 | AH30: 3.6 | AI30: 9 | AL30: B
A31: =A30+0.001 -> 131.025 | B31: Accepted | C31: NA | D31: GridBeyond Limited | E31: GBND-2 | F31: DNO connection | G31: DSF: Load response | H31: 2020-12-01 | I31: 2020-12-31 | J31: 01.12.20 - 31.12.20 (1 months) | K31: As per FFR framework agreement | O31: 1500 | P31: 2300 | Q31: 8 | U31: 106.65 | AC31: 3.6 | AD31: 9 | AE31: 9 | AF31: 3.6 | AG31: 9 | AH31: 3.6 | AI31: 9 | AL31: C
A32: 131.026 | B32: Accepted | C32: NA | D32: GridBeyond Limited | E32: GBND-2 | F32: DNO connection | G32: DSF: Load response | H32: 2020-11-30 | I32: 2020-12-31 | J32: 30.11.20 - 31.12.20 (1 months) | K32: As per FFR framework agreement | R32: 2300 | S32: 700 | T32: 8 | U32: 86.4 | AC32: 3.6 | AD32: 9 | AE32: 9 | AF32: 3.6 | AG32: 9 | AH32: 3.6 | AI32: 9 | AL32: A
A33: 131.027 | B33: Accepted | C33: NA | D33: GridBeyond Limited | E33: GBND-2 | F33: DNO connection | G33: DSF: Load response | H33: 2020-12-01 | I33: 2020-12-31 | J33: 01.12.20 - 31.12.20 (1 months) | K33: As per FFR framework agreement | R33: 700 | S33: 1500 | T33: 8 | U33: 95.85 | AC33: 3.6 | AD33: 9 | AE33: 9 | AF33: 3.6 | AG33: 9 | AH33: 3.6 | AI33: 9 | AL33: B
A34: 131.028 | B34: Accepted | C34: NA | D34: GridBeyond Limited | E34: GBND-2 | F34: DNO connection | G34: DSF: Load response | H34: 2020-12-01 | I34: 2020-12-31 | J34: 01.12.20 - 31.12.20 (1 months) | K34: As per FFR framework agreement | R34: 1500 | S34: 2300 | T34: 8 | U34: 106.65 | AC34: 3.6 | AD34: 9 | AE34: 9 | AF34: 3.6 | AG34: 9 | AH34: 3.6 | AI34: 9 | AL34: C
A35: 131.029 | B35: Rejected | C35: 2 | D35: Flexitricity Limited | E35: AG-EFLX01 | F35: DNO connection | G35: DSF: Storage (for export) | H35: 2020-11-30 | I35: 2020-12-31 | J35: 30.11.20 - 31.12.20 (1 months) | K35: As per FFR framework agreement | L35: 2300 | M35: 2300 | N35: =IF(L35>M35, (2400-L35+M35)/100, IF(AND(L35="",M35="",L35=M35), "", IF(L35=M35,24,(M35-L35)/100))) -> 24 | O35: 2300 | P35: 2300 | Q35: =IF(O35>P35, (2400-O35+P35)/100, IF(AND(O35="",P35="",O35=P35), "", IF(O35=P35,24,(P35-O35)/100))) -> 24 | R35: 2300 | S35: 2300 | T35: =IF(R35>S35, (2400-R35+S35)/100, IF(AND(R35="",S35="",R35=S35), "", IF(R35=S35,24,(S35-R35)/100))) -> 24 | U35: 384.18 | X35: YES | AC35: 7.6 | AD35: 19 | AE35: 19 | AF35: 7.6 | AG35: 19 | AH35: 7.6 | AI35: 19
A36: 131.03 | B36: Rejected | C36: 2 | D36: Flexitricity Limited | E36: AG-BFLX01 | F36: DNO connection | G36: DSF: Storage (for export) | H36: 2020-11-30 | I36: 2020-12-31 | J36: 30.11.20 - 31.12.20 (1 months) | K36: As per FFR framework agreement | L36: 2300 | M36: 2300 | N36: =IF(L36>M36, (2400-L36+M36)/100, IF(AND(L36="",M36="",L36=M36), "", IF(L36=M36,24,(M36-L36)/100))) -> 24 | O36: 2300 | P36: 2300 | Q36: =IF(O36>P36, (2400-O36+P36)/100, IF(AND(O36="",P36="",O36=P36), "", IF(O36=P36,24,(P36-O36)/100))) -> 24 | R36: 2300 | S36: 2300 | T36: =IF(R36>S36, (2400-R36+S36)/100, IF(AND(R36="",S36="",R36=S36), "", IF(R36=S36,24,(S36-R36)/100))) -> 24 | U36: 143.29 | X36: YES | AC36: 2.8 | AD36: 7 | AE36: 7 | AF36: 2.8 | AG36: 7 | AH36: 2.8 | AI36: 7
A37: 131.031 | B37: Rejected | C37: 2 | D37: Flexitricity Limited | E37: AG-FLX00L | F37: DNO connection | G37: DSF: Storage (for export) | H37: 2020-11-30 | I37: 2020-12-31 | J37: 30.11.20 - 31.12.20 (1 months) | K37: As per FFR framework agreement | L37: 2300 | M37: 2300 | N37: 24 | O37: 2300 | P37: 2300 | Q37: 24 | R37: 2300 | S37: 2300 | T37: 24 | U37: 83.72 | X37: YES | AC37: 1.6 | AD37: 4 | AE37: 4 | AF37: 1.6 | AG37: 4 | AH37: 1.6 | AI37: 4
A38: 131.032 | B38: Rejected | C38: 2 | D38: Flexitricity Limited | E38: AG-MFLX02 | F38: DNO connection | G38: DSF: Storage (for export) | H38: 2020-11-30 | I38: 2020-12-31 | J38: 30.11.20 - 31.12.20 (1 months) | K38: As per FFR framework agreement | L38: 2300 | M38: 2300 | N38: 24 | O38: 2300 | P38: 2300 | Q38: 24 | R38: 2300 | S38: 2300 | T38: 24 | U38: 952.56 | X38: YES | AC38: 19.96 | AD38: 49 | AE38: 49 | AF38: 19.96 | AG38: 49 | AH38: 19.96 | AI38: 49
A39: 131.033 | B39: Accepted | C39: NA | D39: Habitat Energy Limited | E39: HAB2-FFR | F39: DNO connection | G39: DSF: Storage (for export) | H39: 2020-11-30 | I39: 2020-12-31 | J39: 30.11.20 - 31.12.20 (1 months) | K39: As per FFR framework agreement | L39: 2300 | M39: 2300 | N39: =IF(L39>M39, (2400-L39+M39)/100, IF(AND(L39="",M39="",L39=M39), "", IF(L39=M39,24,(M39-L39)/100))) -> 24 | O39: 2300 | P39: 2300 | Q39: =IF(O39>P39, (2400-O39+P39)/100, IF(AND(O39="",P39="",O39=P39), "", IF(O39=P39,24,(P39-O39)/100))) -> 24 | R39: 2300 | S39: 2300 | T39: =IF(R39>S39, (2400-R39+S39)/100, IF(AND(R39="",S39="",R39=S39), "", IF(R39=S39,24,(S39-R39)/100))) -> 24 | U39: 59 | V39: 0 | W39: - | X39: - | AC39: 2 | AD39: 5 | AE39: 5 | AF39: 2 | AG39: 5 | AH39: 2 | AI39: 5
A40: 131.034 | B40: Rejected | C40: 2 | D40: Habitat Energy Limited | E40: HAB3-FFR | F40: DNO connection | G40: DSF: Storage (for export) | H40: 2020-11-30 | I40: 2020-12-31 | J40: 30.11.20 - 31.12.20 (1 months) | K40: As per FFR framework agreement | L40: 2300 | M40: 2300 | N40: =IF(L40>M40, (2400-L40+M40)/100, IF(AND(L40="",M40="",L40=M40), "", IF(L40=M40,24,(M40-L40)/100))) -> 24 | O40: 2300 | P40: 2300 | Q40: =IF(O40>P40, (2400-O40+P40)/100, IF(AND(O40="",P40="",O40=P40), "", IF(O40=P40,24,(P40-O40)/100))) -> 24 | R40: 2300 | S40: 2300 | T40: =IF(R40>S40, (2400-R40+S40)/100, IF(AND(R40="",S40="",R40=S40), "", IF(R40=S40,24,(S40-R40)/100))) -> 24 | U40: 297.75 | V40: 0 | W40: - | X40: - | AC40: 6 | AD40: 15 | AE40: 15 | AF40: 6 | AG40: 15 | AH40: 6 | AI40: 15
A41: 131.035 | B41: Rejected | C41: 2 | D41: Habitat Energy Limited | E41: AG-HEL00G | F41: DNO connection | G41: DSF: Storage (for export) | H41: 2020-11-30 | I41: 2020-12-31 | J41: 30.11.20 - 31.12.20 (1 months) | K41: As per FFR framework agreement | L41: 2300 | M41: 2300 | N41: 24 | O41: 2300 | P41: 2300 | Q41: 24 | R41: 2300 | S41: 2300 | T41: 24 | U41: 950.11 | V41: 0 | W41: - | X41: Yes | AC41: 19.6 | AD41: 49 | AE41: 49 | AF41: 19.6 | AG41: 49 | AH41: 19.6 | AI41: 49
A42: 131.036 | B42: Rejected | C42: 2 | D42: Habitat Energy Limited | E42: AG-HEL01H | F42: DNO connection | G42: DSF: Storage (for export) | H42: 2020-11-30 | I42: 2020-12-31 | J42: 30.11.20 - 31.12.20 (1 months) | K42: As per FFR framework agreement | L42: 2300 | M42: 2300 | N42: 24 | O42: 2300 | P42: 2300 | Q42: 24 | R42: 2300 | S42: 2300 | T42: 24 | U42: 266.2 | V42: 0 | W42: - | X42: Yes | AC42: 8 | AD42: 20 | AE42: 20 | AF42: 8 | AG42: 20 | AH42: 6.4 | AI42: 16
A43: 131.037 | B43: Accepted | C43: NA | D43: Habitat Energy Limited | E43: HAB4-FFR | F43: DNO connection | G43: DSF: Storage (for export) | H43: 2020-11-30 | I43: 2020-12-31 | J43: 30.11.20 - 31.12.20 (1 months) | K43: As per FFR framework agreement | L43: 2300 | M43: 2300 | N43: 24 | O43: 2300 | P43: 2300 | Q43: 24 | R43: 2300 | S43: 2300 | T43: 24 | U43: 367.2 | V43: 0 | W43: - | X43: - | AC43: 14.4 | AD43: 36 | AE43: 36 | AF43: 14.4 | AG43: 36 | AH43: 14.4 | AI43: 36
A44: 131.038 | B44: Accepted | C44: NA | D44: Kiwi Power Ltd | E44: KIWIE-2 | F44: DNO connection | G44: DSF: Storage (onsite) | H44: 2020-11-30 | I44: 2020-12-31 | J44: 30.11.20 - 31.12.20 (1 months) | K44: As per FFR framework agreement | L44: 2300 | M44: 700 | N44: =IF(L44>M44, (2400-L44+M44)/100, IF(AND(L44="",M44="",L44=M44), "", IF(L44=M44,24,(M44-L44)/100))) -> 8 | O44: 2300 | P44: 700 | Q44: =IF(O44>P44, (2400-O44+P44)/100, IF(AND(O44="",P44="",O44=P44), "", IF(O44=P44,24,(P44-O44)/100))) -> 8 | R44: 2300 | S44: 700 | T44: =IF(R44>S44, (2400-R44+S44)/100, IF(AND(R44="",S44="",R44=S44), "", IF(R44=S44,24,(S44-R44)/100))) -> 8 | U44: 35.6 | AC44: 1.6 | AD44: 4 | AE44: 4 | AF44: 1.6 | AG44: 4 | AH44: 1.6 | AI44: 4
A45: 131.039 | B45: Accepted | C45: NA | D45: Kiwi Power Ltd | E45: KIWIE-2 | F45: DNO connection | G45: DSF: Storage (onsite) | H45: 2020-12-01 | I45: 2020-12-31 | J45: =IFERROR(TEXT(H45,"DD.MM.YY")&" - "&TEXT(I45,"DD.MM.YY")&" ("&DATEDIF(H45,I45+1,"m")&" months)","Tender End Date is Before Start Date") -> 01.12.20 - 31.12.20 (1 months) | K45: As per FFR framework agreement | L45: 700 | M45: 1500 | N45: =IF(L45>M45, (2400-L45+M45)/100, IF(AND(L45="",M45="",L45=M45), "", IF(L45=M45,24,(M45-L45)/100))) -> 8 | O45: 700 | P45: 1500 | Q45: =IF(O45>P45, (2400-O45+P45)/100, IF(AND(O45="",P45="",O45=P45), "", IF(O45=P45,24,(P45-O45)/100))) -> 8 | R45: 700 | S45: 1500 | T45: =IF(R45>S45, (2400-R45+S45)/100, IF(AND(R45="",S45="",R45=S45), "", IF(R45=S45,24,(S45-R45)/100))) -> 8 | U45: 39.6 | AC45: 1.6 | AD45: 4 | AE45: 4 | AF45: 1.6 | AG45: 4 | AH45: 1.6 | AI45: 4
A46: 131.04 | B46: Accepted | C46: NA | D46: Kiwi Power Ltd | E46: KIWIE-2 | F46: DNO connection | G46: DSF: Storage (onsite) | H46: 2020-12-01 | I46: 2020-12-31 | J46: =IFERROR(TEXT(H46,"DD.MM.YY")&" - "&TEXT(I46,"DD.MM.YY")&" ("&DATEDIF(H46,I46+1,"m")&" months)","Tender End Date is Before Start Date") -> 01.12.20 - 31.12.20 (1 months) | K46: As per FFR framework agreement | L46: 1500 | M46: 2300 | N46: 8 | O46: 1500 | P46: 2300 | Q46: 8 | R46: 1500 | S46: 2300 | T46: 8 | U46: 42 | AC46: 1.6 | AD46: 4 | AE46: 4 | AF46: 1.6 | AG46: 4 | AH46: 1.6 | AI46: 4
A47: 131.041 | B47: Accepted | C47: NA | D47: Kiwi Power Ltd | E47: KIWIDA-1 | F47: DNO connection | G47: DSF: Storage (onsite) | H47: 2020-11-30 | I47: 2020-12-31 | J47: =IFERROR(TEXT(H47,"DD.MM.YY")&" - "&TEXT(I47,"DD.MM.YY")&" ("&DATEDIF(H47,I47+1,"m")&" months)","Tender End Date is Before Start Date") -> 30.11.20 - 31.12.20 (1 months) | K47: As per FFR framework agreement | L47: 2300 | M47: 700 | N47: 8 | O47: 2300 | P47: 700 | Q47: 8 | R47: 2300 | S47: 700 | T47: 8 | U47: 18 | AC47: 0.8 | AD47: 2 | AE47: 2 | AF47: 0.8 | AG47: 2 | AH47: 0.8 | AI47: 2
A48: 131.042 | B48: Accepted | C48: NA | D48: Kiwi Power Ltd | E48: KIWIDA-1 | F48: DNO connection | G48: DSF: Storage (onsite) | H48: 2020-12-01 | I48: 2020-12-31 | J48: =IFERROR(TEXT(H48,"DD.MM.YY")&" - "&TEXT(I48,"DD.MM.YY")&" ("&DATEDIF(H48,I48+1,"m")&" months)","Tender End Date is Before Start Date") -> 01.12.20 - 31.12.20 (1 months) | K48: As per FFR framework agreement | L48: 700 | M48: 1500 | N48: 8 | O48: 700 | P48: 1500 | Q48: 8 | R48: 700 | S48: 1500 | T48: 8 | U48: 20 | AC48: 0.8 | AD48: 2 | AE48: 2 | AF48: 0.8 | AG48: 2 | AH48: 0.8 | AI48: 2
A49: 131.043 | B49: Accepted | C49: NA | D49: Kiwi Power Ltd | E49: KIWIDA-1 | F49: DNO connection | G49: DSF: Storage (onsite) | H49: 2020-12-01 | I49: 2020-12-31 | J49: 01.12.20 - 31.12.20 (1 months) | K49: As per FFR framework agreement | O49: 1500 | P49: 2300 | Q49: 8 | R49: 1500 | S49: 2300 | T49: 8 | U49: 22.8 | AC49: 0.8 | AD49: 2 | AE49: 2 | AF49: 0.8 | AG49: 2 | AH49: 0.8 | AI49: 2
A50: 131.044 | B50: Accepted | C50: NA | D50: Kiwi Power Ltd | E50: KIWIE-4 | F50: DNO connection | G50: DSF: Storage (onsite) | H50: 2020-11-30 | I50: 2020-12-31 | J50: =IFERROR(TEXT(H50,"DD.MM.YY")&" - "&TEXT(I50,"DD.MM.YY")&" ("&DATEDIF(H50,I50+1,"m")&" months)","Tender End Date is Before Start Date") -> 30.11.20 - 31.12.20 (1 months) | K50: As per FFR framework agreement | L50: 2300 | M50: 700 | N50: =IF(L50>M50, (2400-L50+M50)/100, IF(AND(L50="",M50="",L50=M50), "", IF(L50=M50,24,(M50-L50)/100))) -> 8 | O50: 2300 | P50: 700 | Q50: 8 | R50: 2300 | S50: 700 | T50: 8 | U50: 182.7 | AC50: 8.4 | AD50: 21 | AE50: 21 | AF50: 8.4 | AG50: 21 | AH50: 8.4 | AI50: 21
A51: 131.045 | B51: Accepted | C51: NA | D51: Kiwi Power Ltd | E51: KIWIE-4 | F51: DNO connection | G51: DSF: Storage (onsite) | H51: 2020-12-01 | I51: 2020-12-31 | J51: =IFERROR(TEXT(H51,"DD.MM.YY")&" - "&TEXT(I51,"DD.MM.YY")&" ("&DATEDIF(H51,I51+1,"m")&" months)","Tender End Date is Before Start Date") -> 01.12.20 - 31.12.20 (1 months) | K51: As per FFR framework agreement | L51: 700 | M51: 1500 | N51: 8 | O51: 700 | P51: 1500 | Q51: 8 | R51: 700 | S51: 1500 | T51: 8 | U51: 203.7 | AC51: 8.4 | AD51: 21 | AE51: 21 | AF51: 8.4 | AG51: 21 | AH51: 8.4 | AI51: 21
A52: 131.046 | B52: Accepted | C52: NA | D52: Kiwi Power Ltd | E52: KIWIE-4 | F52: DNO connection | G52: DSF: Storage (onsite) | H52: 2020-12-01 | I52: 2020-12-31 | J52: 01.12.20 - 31.12.20 (1 months) | K52: As per FFR framework agreement | L52: 1500 | M52: 2300 | N52: 8 | O52: 1500 | P52: 2300 | Q52: 8 | R52: 1500 | S52: 2300 | T52: 8 | U52: 212.1 | AC52: 8.4 | AD52: 21 | AE52: 21 | AF52: 8.4 | AG52: 21 | AH52: 8.4 | AI52: 21
A53: 131.047 | B53: Accepted | C53: NA | D53: Open Energi Limited | E53: OPEN-1 | F53: DNO connection | G53: DSF: Load response | H53: 2020-11-30 | I53: 2020-12-31 | J53: 30.11.20 - 31.12.20 (1 months) | K53: As per FFR framework agreement | L53: 2300 | M53: 700 | N53: =IF(L53>M53, (2400-L53+M53)/100, IF(AND(L53="",M53="",L53=M53), "", IF(L53=M53,24,(M53-L53)/100))) -> 8 | O53: 2300 | P53: 700 | Q53: =IF(O53>P53, (2400-O53+P53)/100, IF(AND(O53="",P53="",O53=P53), "", IF(O53=P53,24,(P53-O53)/100))) -> 8 | R53: 2300 | S53: 700 | T53: =IF(R53>S53, (2400-R53+S53)/100, IF(AND(R53="",S53="",R53=S53), "", IF(R53=S53,24,(S53-R53)/100))) -> 8 | U53: 13.9 | AC53: 0.8 | AD53: 2 | AE53: 2 | AF53: 0.8 | AG53: 2 | AH53: 0.8 | AI53: 2 | AL53: A
A54: 131.048 | B54: Accepted | C54: NA | D54: Open Energi Limited | E54: OPEN-1 | F54: DNO connection | G54: DSF: Load response | H54: 2020-12-01 | I54: 2020-12-31 | J54: 01.12.20 - 31.12.20 (1 months) | K54: As per FFR framework agreement | L54: 700 | M54: 1500 | N54: =IF(L54>M54, (2400-L54+M54)/100, IF(AND(L54="",M54="",L54=M54), "", IF(L54=M54,24,(M54-L54)/100))) -> 8 | O54: 700 | P54: 2300 | Q54: =IF(O54>P54, (2400-O54+P54)/100, IF(AND(O54="",P54="",O54=P54), "", IF(O54=P54,24,(P54-O54)/100))) -> 16 | R54: 700 | S54: 2300 | T54: =IF(R54>S54, (2400-R54+S54)/100, IF(AND(R54="",S54="",R54=S54), "", IF(R54=S54,24,(S54-R54)/100))) -> 16 | U54: 17.9 | AC54: 0.8 | AD54: 2 | AE54: 2 | AF54: 0.8 | AG54: 2 | AH54: 0.8 | AI54: 2 | AL54: B
A55: 131.049 | B55: Accepted | C55: NA | D55: Open Energi Limited | E55: OPEN-1 | F55: DNO connection | G55: DSF: Load response | H55: 2020-12-01 | I55: 2020-12-31 | J55: 01.12.20 - 31.12.20 (1 months) | K55: As per FFR framework agreement | L55: 1900 | M55: 2300 | N55: 4 | U55: 17.9 | AC55: 0.8 | AD55: 2 | AE55: 2 | AF55: 0.8 | AG55: 2 | AH55: 0.8 | AI55: 2 | AL55: B
A56: 131.05 | B56: Accepted | C56: NA | D56: Open Energi Limited | E56: OPEN-2 | F56: DNO connection | G56: DSF: Storage (onsite) | H56: 2020-11-30 | I56: 2020-12-31 | J56: 30.11.20 - 31.12.20 (1 months) | K56: As per FFR framework agreement | L56: 2300 | M56: 700 | N56: 8 | O56: 2300 | P56: 700 | Q56: 8 | R56: 2300 | S56: 700 | T56: 8 | U56: 26.85 | AC56: 1.2 | AD56: 3 | AE56: 3 | AF56: 1.2 | AG56: 3 | AH56: 1.2 | AI56: 3 | AL56: C
A57: 131.051 | B57: Accepted | C57: NA | D57: Open Energi Limited | E57: OPEN-2 | F57: DNO connection | G57: DSF: Storage (onsite) | H57: 2020-12-01 | I57: 2020-12-31 | J57: 01.12.20 - 31.12.20 (1 months) | K57: As per FFR framework agreement | L57: 700 | M57: 1500 | N57: 8 | O57: 700 | P57: 2300 | Q57: 16 | R57: 700 | S57: 2300 | T57: 16 | U57: 32.85 | AC57: 1.2 | AD57: 3 | AE57: 3 | AF57: 1.2 | AG57: 3 | AH57: 1.2 | AI57: 3 | AL57: D
A58: 131.052 | B58: Rejected | C58: 2 | D58: Open Energi Limited | E58: OPEN-2 | F58: DNO connection | G58: DSF: Storage (onsite) | H58: 2020-12-01 | I58: 2020-12-31 | J58: 01.12.20 - 31.12.20 (1 months) | K58: As per FFR framework agreement | L58: 1500 | M58: 1900 | N58: 4 | U58: 60 | AC58: 0.8 | AD58: 2 | AE58: 2 | AF58: 0.8 | AG58: 2 | AH58: 0.8 | AI58: 2 | AL58: E
A59: 131.053 | B59: Accepted | C59: NA | D59: Open Energi Limited | E59: OPEN-2 | F59: DNO connection | G59: DSF: Storage (onsite) | H59: 2020-12-01 | I59: 2020-12-31 | J59: 01.12.20 - 31.12.20 (1 months) | K59: As per FFR framework agreement | L59: 1900 | M59: 2300 | N59: 4 | U59: 32.85 | AC59: 1.2 | AD59: 3 | AE59: 3 | AF59: 1.2 | AG59: 3 | AH59: 1.2 | AI59: 3 | AL59: D
A60: 131.054 | B60: Accepted | C60: NA | D60: npower | E60: NPFRD-1 | F60: DNO connection | G60: Battery | H60: 2020-11-30 | I60: 2020-12-31 | J60: 30.11.20 - 31.12.20 (1 months) | K60: As per FFR framework agreement | L60: 2300 | M60: 700 | N60: =IF(L60>M60, (2400-L60+M60)/100, IF(AND(L60="",M60="",L60=M60), "", IF(L60=M60,24,(M60-L60)/100))) -> 8 | O60: 2300 | P60: 700 | Q60: =IF(O60>P60, (2400-O60+P60)/100, IF(AND(O60="",P60="",O60=P60), "", IF(O60=P60,24,(P60-O60)/100))) -> 8 | R60: 2300 | S60: 700 | T60: =IF(R60>S60, (2400-R60+S60)/100, IF(AND(R60="",S60="",R60=S60), "", IF(R60=S60,24,(S60-R60)/100))) -> 8 | U60: 37.6 | AC60: 1.6 | AD60: 4 | AE60: 4 | AF60: 1.6 | AG60: 4 | AH60: 1.6 | AI60: 4 | AL60: A
A61: 131.055 | B61: Accepted | C61: NA | D61: npower | E61: NPFRD-1 | F61: DNO connection | G61: Battery | H61: 2020-12-01 | I61: 2020-12-31 | J61: 01.12.20 - 31.12.20 (1 months) | K61: As per FFR framework agreement | L61: 700 | M61: 1500 | N61: =IF(L61>M61, (2400-L61+M61)/100, IF(AND(L61="",M61="",L61=M61), "", IF(L61=M61,24,(M61-L61)/100))) -> 8 | O61: 700 | P61: 1500 | Q61: =IF(O61>P61, (2400-O61+P61)/100, IF(AND(O61="",P61="",O61=P61), "", IF(O61=P61,24,(P61-O61)/100))) -> 8 | R61: 700 | S61: 1500 | T61: =IF(R61>S61, (2400-R61+S61)/100, IF(AND(R61="",S61="",R61=S61), "", IF(R61=S61,24,(S61-R61)/100))) -> 8 | U61: 43 | AC61: 1.6 | AD61: 4 | AE61: 4 | AF61: 1.6 | AG61: 4 | AH61: 1.6 | AI61: 4 | AL61: B
A62: 131.056 | B62: Accepted | C62: NA | D62: npower | E62: NPFRD-1 | F62: DNO connection | G62: Battery | H62: 2020-12-01 | I62: 2020-12-31 | J62: 01.12.20 - 31.12.20 (1 months) | K62: As per FFR framework agreement | L62: 1900 | M62: 2300 | N62: 4 | O62: 1900 | P62: 2300 | Q62: 4 | R62: 1900 | S62: 2300 | T62: 4 | U62: 43 | AC62: 1.6 | AD62: 4 | AE62: 4 | AF62: 1.6 | AG62: 4 | AH62: 1.6 | AI62: 4 | AL62: B
A63: 131.057 | B63: Rejected | C63: 4 | D63: npower | E63: NPFRD-1 | F63: DNO connection | G63: Battery | H63: 2020-11-30 | I63: 2020-12-31 | J63: 30.11.20 - 31.12.20 (1 months) | K63: As per FFR framework agreement | L63: 2300 | M63: 2300 | N63: 24 | O63: 2300 | P63: 2300 | Q63: 24 | R63: 2300 | S63: 2300 | T63: 24 | U63: 46 | AC63: 1.6 | AD63: 4 | AE63: 4 | AF63: 1.6 | AG63: 4 | AH63: 1.6 | AI63: 4 | AL63: C | AM63: Mutually exclusive from A and B
A64: 131.058 | B64: Accepted | C64: NA | D64: OSSPV001 Limited | E64: OEL1-FFR | F64: DNO connection | G64: Battery | H64: 2020-11-30 | I64: 2020-12-31 | J64: 30.11.20 - 31.12.20 (1 months) | K64: As per FFR framework agreement | L64: 2300 | M64: 700 | N64: 8 | O64: 2300 | P64: 700 | Q64: 8 | R64: 2300 | S64: 700 | T64: 8 | U64: 90 | AC64: 3.6 | AD64: 9 | AE64: 9 | AF64: 3.6 | AG64: 9 | AH64: 3.6 | AI64: 9
A65: 131.059 | B65: Accepted | C65: NA | D65: OSSPV001 Limited | E65: OEL1-FFR | F65: DNO connection | G65: Battery | H65: 2020-12-01 | I65: 2020-12-31 | J65: 01.12.20 - 31.12.20 (1 months) | K65: As per FFR framework agreement | L65: 700 | M65: 1500 | N65: 8 | O65: 700 | P65: 1500 | Q65: 8 | R65: 700 | S65: 1500 | T65: 8 | U65: 90 | AC65: 3.6 | AD65: 9 | AE65: 9 | AF65: 3.6 | AG65: 9 | AH65: 3.6 | AI65: 9
A66: =A65+0.001 -> 131.06 | B66: Accepted | C66: NA | D66: OSSPV001 Limited | E66: OEL1-FFR | F66: DNO connection | G66: Battery | H66: 2020-12-01 | I66: 2020-12-31 | J66: 01.12.20 - 31.12.20 (1 months) | K66: As per FFR framework agreement | L66: 1900 | M66: 2300 | N66: 4 | O66: 1900 | P66: 2300 | Q66: 4 | R66: 1900 | S66: 2300 | T66: 4 | U66: 99 | AC66: 3.6 | AD66: 9 | AE66: 9 | AF66: 3.6 | AG66: 9 | AH66: 3.6 | AI66: 9
A67: =A66+0.001 -> 131.061 | B67: Accepted | C67: NA | D67: OSSPV001 Limited | E67: OEL2-FFR | F67: DNO connection | G67: Battery | H67: 2020-11-30 | I67: 2020-12-31 | J67: 30.11.20 - 31.12.20 (1 months) | K67: As per FFR framework agreement | L67: 2300 | M67: 700 | N67: 8 | O67: 2300 | P67: 700 | Q67: 8 | R67: 2300 | S67: 700 | T67: 8 | U67: 100 | AC67: 4 | AD67: 10 | AE67: 10 | AF67: 4 | AG67: 10 | AH67: 4 | AI67: 10
A68: =A65+0.003 -> 131.062 | B68: Accepted | C68: NA | D68: OSSPV001 Limited | E68: OEL2-FFR | F68: DNO connection | G68: Battery | H68: 2020-12-01 | I68: 2020-12-31 | J68: =IFERROR(TEXT(H68,"DD.MM.YY")&" - "&TEXT(I68,"DD.MM.YY")&" ("&DATEDIF(H68,I68+1,"m")&" months)","Tender End Date is Before Start Date") -> 01.12.20 - 31.12.20 (1 months) | K68: As per FFR framework agreement | L68: 700 | M68: 1500 | N68: 8 | O68: 700 | P68: 1500 | Q68: 8 | R68: 700 | S68: 1500 | T68: 8 | U68: 100 | AC68: 4 | AD68: 10 | AE68: 10 | AF68: 4 | AG68: 10 | AH68: 4 | AI68: 10
A69: =A68+0.001 -> 131.063 | B69: Accepted | C69: NA | D69: OSSPV001 Limited | E69: OEL2-FFR | F69: DNO connection | G69: Battery | H69: 2020-12-01 | I69: 2020-12-31 | J69: =IFERROR(TEXT(H69,"DD.MM.YY")&" - "&TEXT(I69,"DD.MM.YY")&" ("&DATEDIF(H69,I69+1,"m")&" months)","Tender End Date is Before Start Date") -> 01.12.20 - 31.12.20 (1 months) | K69: As per FFR framework agreement | L69: 1900 | M69: 2300 | N69: 4 | O69: 1900 | P69: 2300 | Q69: 4 | R69: 1900 | S69: 2300 | T69: 4 | U69: 110 | AC69: 4 | AD69: 10 | AE69: 10 | AF69: 4 | AG69: 10 | AH69: 4 | AI69: 10
A70: =A69+0.001 -> 131.064 | B70: Accepted | C70: NA | D70: Peak Gen | E70: PETDAG-1 | F70: DNO connection | G70: DSF: Distributed generation (for export) | H70: 2020-11-30 | I70: 2020-12-31 | J70: =IFERROR(TEXT(H70,"DD.MM.YY")&" - "&TEXT(I70,"DD.MM.YY")&" ("&DATEDIF(H70,I70+1,"m")&" months)","Tender End Date is Before Start Date") -> 30.11.20 - 31.12.20 (1 months) | K70: As per FFR framework agreement | L70: 2300 | M70: 700 | N70: =IF(L70>M70, (2400-L70+M70)/100, IF(AND(L70="",M70="",L70=M70), "", IF(L70=M70,24,(M70-L70)/100))) -> 8 | O70: 2300 | P70: 700 | Q70: =IF(O70>P70, (2400-O70+P70)/100, IF(AND(O70="",P70="",O70=P70), "", IF(O70=P70,24,(P70-O70)/100))) -> 8 | R70: 2300 | S70: 700 | T70: =IF(R70>S70, (2400-R70+S70)/100, IF(AND(R70="",S70="",R70=S70), "", IF(R70=S70,24,(S70-R70)/100))) -> 8 | U70: 36.99 | AC70: 1.6 | AD70: 4 | AE70: 4 | AF70: 1.6 | AG70: 4 | AH70: 1.6 | AI70: 4
A71: =A70+0.001 -> 131.065 | B71: Accepted | C71: NA | D71: Peak Gen | E71: PETDAG-1 | F71: DNO connection | G71: DSF: Distributed generation (for export) | H71: 2020-12-01 | I71: 2020-12-31 | J71: 01.12.20 - 31.12.20 (1 months) | K71: As per FFR framework agreement | L71: 700 | M71: 1500 | N71: =IF(L71>M71, (2400-L71+M71)/100, IF(AND(L71="",M71="",L71=M71), "", IF(L71=M71,24,(M71-L71)/100))) -> 8 | O71: 700 | P71: 1500 | Q71: =IF(O71>P71, (2400-O71+P71)/100, IF(AND(O71="",P71="",O71=P71), "", IF(O71=P71,24,(P71-O71)/100))) -> 8 | R71: 700 | S71: 1500 | T71: =IF(R71>S71, (2400-R71+S71)/100, IF(AND(R71="",S71="",R71=S71), "", IF(R71=S71,24,(S71-R71)/100))) -> 8 | U71: 41.99 | AC71: 1.6 | AD71: 4 | AE71: 4 | AF71: 1.6 | AG71: 4 | AH71: 1.6 | AI71: 4
A72: =A71+0.001 -> 131.066 | B72: Accepted | C72: NA | D72: Peak Gen | E72: PETDAG-1 | F72: DNO connection | G72: DSF: Distributed generation (for export) | H72: 2020-12-01 | I72: 2020-12-31 | J72: =IFERROR(TEXT(H72,"DD.MM.YY")&" - "&TEXT(I72,"DD.MM.YY")&" ("&DATEDIF(H72,I72+1,"m")&" months)","Tender End Date is Before Start Date") -> 01.12.20 - 31.12.20 (1 months) | K72: As per FFR framework agreement | L72: 1500 | M72: 2300 | N72: 8 | O72: 1500 | P72: 2300 | Q72: 8 | R72: 1500 | S72: 2300 | T72: 8 | U72: 47.99 | AC72: 1.6 | AD72: 4 | AE72: 4 | AF72: 1.6 | AG72: 4 | AH72: 1.6 | AI72: 4
A73: 131.067 | B73: Accepted | C73: NA | D73: Social Energy Limited | E73: SOC1-FFR | F73: DNO connection | G73: DSF: Storage (onsite) | H73: 2020-11-30 | I73: 2020-12-31 | J73: 30.11.20 - 31.12.20 (1 months) | K73: As per FFR framework agreement | L73: 2300 | M73: 700 | N73: =IF(L73>M73, (2400-L73+M73)/100, IF(AND(L73="",M73="",L73=M73), "", IF(L73=M73,24,(M73-L73)/100))) -> 8 | O73: 2300 | P73: 700 | Q73: =IF(O73>P73, (2400-O73+P73)/100, IF(AND(O73="",P73="",O73=P73), "", IF(O73=P73,24,(P73-O73)/100))) -> 8 | R73: 2300 | S73: 700 | T73: =IF(R73>S73, (2400-R73+S73)/100, IF(AND(R73="",S73="",R73=S73), "", IF(R73=S73,24,(S73-R73)/100))) -> 8 | U73: 7.01 | AC73: 0.4 | AD73: 1 | AE73: 1 | AF73: 0.4 | AG73: 1 | AH73: 0.4 | AI73: 1 | AP73: H for only 30min
A74: 131.068 | B74: Accepted | C74: NA | D74: Social Energy Limited | E74: SOC1-FFR | F74: DNO connection | G74: DSF: Storage (onsite) | H74: 2020-12-01 | I74: 2020-12-31 | J74: 01.12.20 - 31.12.20 (1 months) | K74: As per FFR framework agreement | L74: 700 | M74: 1500 | N74: =IF(L74>M74, (2400-L74+M74)/100, IF(AND(L74="",M74="",L74=M74), "", IF(L74=M74,24,(M74-L74)/100))) -> 8 | O74: 700 | P74: 1500 | Q74: =IF(O74>P74, (2400-O74+P74)/100, IF(AND(O74="",P74="",O74=P74), "", IF(O74=P74,24,(P74-O74)/100))) -> 8 | R74: 700 | S74: 1500 | T74: =IF(R74>S74, (2400-R74+S74)/100, IF(AND(R74="",S74="",R74=S74), "", IF(R74=S74,24,(S74-R74)/100))) -> 8 | U74: 10.01 | AC74: 0.4 | AD74: 1 | AE74: 1 | AF74: 0.4 | AG74: 1 | AH74: 0.4 | AI74: 1 | AP74: H for only 30min
A75: 131.069 | B75: Accepted | C75: NA | D75: Social Energy Limited | E75: SOC1-FFR | F75: DNO connection | G75: DSF: Storage (onsite) | H75: 2020-12-01 | I75: 2020-12-31 | J75: 01.12.20 - 31.12.20 (1 months) | K75: As per FFR framework agreement | L75: 1500 | M75: 2300 | N75: 8 | O75: 1500 | P75: 2300 | Q75: 8 | R75: 1500 | S75: 2300 | T75: 8 | U75: 11.02 | AC75: 0.4 | AD75: 1 | AE75: 1 | AF75: 0.4 | AG75: 1 | AH75: 0.4 | AI75: 1 | AP75: H for only 30min
A76: 131.07 | B76: Accepted | C76: NA | D76: Social Energy Limited | E76: SOC2-FFR | F76: DNO connection | G76: DSF: Storage (onsite) | H76: 2020-11-30 | I76: 2020-12-31 | J76: 30.11.20 - 31.12.20 (1 months) | K76: As per FFR framework agreement | L76: 2300 | M76: 700 | N76: 8 | O76: 2300 | P76: 700 | Q76: 8 | R76: 2300 | S76: 700 | T76: 8 | U76: 7.15 | AC76: 0.4 | AD76: 1 | AE76: 1 | AF76: 0.4 | AG76: 1 | AH76: 0.4 | AI76: 1 | AP76: H for only 30min
A77: 131.071 | B77: Accepted | C77: NA | D77: Social Energy Limited | E77: SOC2-FFR | F77: DNO connection | G77: DSF: Storage (onsite) | H77: 2020-12-01 | I77: 2020-12-31 | J77: 01.12.20 - 31.12.20 (1 months) | K77: As per FFR framework agreement | L77: 700 | M77: 1500 | N77: 8 | O77: 700 | P77: 1500 | Q77: 8 | R77: 700 | S77: 1500 | T77: 8 | U77: 9.74 | AC77: 0.4 | AD77: 1 | AE77: 1 | AF77: 0.4 | AG77: 1 | AH77: 0.4 | AI77: 1 | AP77: H for only 30min
A78: 131.072 | B78: Accepted | C78: NA | D78: Social Energy Limited | E78: SOC2-FFR | F78: DNO connection | G78: DSF: Storage (onsite) | H78: 2020-12-01 | I78: 2020-12-31 | J78: 01.12.20 - 31.12.20 (1 months) | K78: As per FFR framework agreement | L78: 1500 | M78: 2300 | N78: 8 | O78: 1500 | P78: 2300 | Q78: 8 | R78: 1500 | S78: 2300 | T78: 8 | U78: 11.73 | AC78: 0.4 | AD78: 1 | AE78: 1 | AF78: 0.4 | AG78: 1 | AH78: 0.4 | AI78: 1 | AP78: H for only 30min
A79: =A78+0.001 -> 131.073 | B79: Accepted | C79: NA | D79: Social Energy Limited | E79: SOC3-FFR | F79: DNO connection | G79: DSF: Storage (onsite) | H79: 2020-11-30 | I79: 2020-12-31 | J79: 30.11.20 - 31.12.20 (1 months) | K79: As per FFR framework agreement | L79: 2300 | M79: 700 | N79: 8 | O79: 2300 | P79: 700 | Q79: 8 | R79: 2300 | S79: 700 | T79: 8 | U79: 7.28 | AC79: 0.4 | AD79: 1 | AE79: 1 | AF79: 0.4 | AG79: 1 | AH79: 0.4 | AI79: 1 | AP79: H for only 30min
A80: 131.074 | B80: Accepted | C80: NA | D80: Social Energy Limited | E80: SOC3-FFR | F80: DNO connection | G80: DSF: Storage (onsite) | H80: 2020-12-01 | I80: 2020-12-31 | J80: 01.12.20 - 31.12.20 (1 months) | K80: As per FFR framework agreement | L80: 700 | M80: 1500 | N80: 8 | O80: 700 | P80: 1500 | Q80: 8 | R80: 700 | S80: 1500 | T80: 8 | U80: 9.39 | AC80: 0.4 | AD80: 1 | AE80: 1 | AF80: 0.4 | AG80: 1 | AH80: 0.4 | AI80: 1 | AP80: H for only 30min
A81: 131.075 | B81: Accepted | C81: NA | D81: Social Energy Limited | E81: SOC3-FFR | F81: DNO connection | G81: DSF: Storage (onsite) | H81: 2020-12-01 | I81: 2020-12-31 | J81: 01.12.20 - 31.12.20 (1 months) | K81: As per FFR framework agreement | L81: 1500 | M81: 2300 | N81: 8 | O81: 1500 | P81: 2300 | Q81: 8 | R81: 1500 | S81: 2300 | T81: 8 | U81: 12.09 | AC81: 0.4 | AD81: 1 | AE81: 1 | AF81: 0.4 | AG81: 1 | AH81: 0.4 | AI81: 1 | AP81: H for only 30min
A82: 131.076 | B82: Accepted | C82: NA | D82: Social Energy Limited | E82: SOC4-FFR | F82: DNO connection | G82: DSF: Storage (onsite) | H82: 2020-11-30 | I82: 2020-12-31 | J82: 30.11.20 - 31.12.20 (1 months) | K82: As per FFR framework agreement | L82: 2300 | M82: 700 | N82: 8 | O82: 2300 | P82: 700 | Q82: 8 | R82: 2300 | S82: 700 | T82: 8 | U82: 7.37 | AC82: 0.4 | AD82: 1 | AE82: 1 | AF82: 0.4 | AG82: 1 | AH82: 0.4 | AI82: 1 | AP82: H for only 30min
A83: 131.077 | B83: Accepted | C83: NA | D83: Social Energy Limited | E83: SOC4-FFR | F83: DNO connection | G83: DSF: Storage (onsite) | H83: 2020-12-01 | I83: 2020-12-31 | J83: 01.12.20 - 31.12.20 (1 months) | K83: As per FFR framework agreement | L83: 700 | M83: 1500 | N83: 8 | O83: 700 | P83: 1500 | Q83: 8 | R83: 700 | S83: 1500 | T83: 8 | U83: 9.02 | AC83: 0.4 | AD83: 1 | AE83: 1 | AF83: 0.4 | AG83: 1 | AH83: 0.4 | AI83: 1 | AP83: H for only 30min
A84: 131.078 | B84: Accepted | C84: NA | D84: Social Energy Limited | E84: SOC4-FFR | F84: DNO connection | G84: DSF: Storage (onsite) | H84: 2020-12-01 | I84: 2020-12-31 | J84: 01.12.20 - 31.12.20 (1 months) | K84: As per FFR framework agreement | L84: 1500 | M84: 2300 | N84: 8 | O84: 1500 | P84: 2300 | Q84: 8 | R84: 1500 | S84: 2300 | T84: 8 | U84: 12.49 | AC84: 0.4 | AD84: 1 | AE84: 1 | AF84: 0.4 | AG84: 1 | AH84: 0.4 | AI84: 1 | AP84: H for only 30min
A85: 131.079 | B85: Accepted | C85: NA | D85: Social Energy Limited | E85: SOC5-FFR | F85: DNO connection | G85: DSF: Storage (onsite) | H85: 2020-11-30 | I85: 2020-12-31 | J85: 30.11.20 - 31.12.20 (1 months) | K85: As per FFR framework agreement | L85: 2300 | M85: 700 | N85: 8 | O85: 2300 | P85: 700 | Q85: 8 | R85: 2300 | S85: 700 | T85: 8 | U85: 7.69 | AC85: 0.4 | AD85: 1 | AE85: 1 | AF85: 0.4 | AG85: 1 | AH85: 0.4 | AI85: 1 | AP85: H for only 30min
A86: 131.08 | B86: Accepted | C86: NA | D86: Social Energy Limited | E86: SOC5-FFR | F86: DNO connection | G86: DSF: Storage (onsite) | H86: 2020-12-01 | I86: 2020-12-31 | J86: 01.12.20 - 31.12.20 (1 months) | K86: As per FFR framework agreement | L86: 700 | M86: 1500 | N86: 8 | O86: 700 | P86: 1500 | Q86: 8 | R86: 700 | S86: 1500 | T86: 8 | U86: 8.71 | AC86: 0.4 | AD86: 1 | AE86: 1 | AF86: 0.4 | AG86: 1 | AH86: 0.4 | AI86: 1 | AP86: H for only 30min
A87: 131.081 | B87: Rejected | C87: 2 | D87: Social Energy Limited | E87: SOC5-FFR | F87: DNO connection | G87: DSF: Storage (onsite) | H87: 2020-12-01 | I87: 2020-12-31 | J87: 01.12.20 - 31.12.20 (1 months) | K87: As per FFR framework agreement | L87: 1500 | M87: 2300 | N87: 8 | O87: 1500 | P87: 2300 | Q87: 8 | R87: 1500 | S87: 2300 | T87: 8 | U87: 14.21 | AC87: 0.4 | AD87: 1 | AE87: 1 | AF87: 0.4 | AG87: 1 | AH87: 0.4 | AI87: 1 | AP87: H for only 30min
A88: 131.082 | B88: Accepted | C88: NA | D88: Social Energy Limited | E88: SOC6-FFR | F88: DNO connection | G88: DSF: Storage (onsite) | H88: 2020-11-30 | I88: 2020-12-31 | J88: 30.11.20 - 31.12.20 (1 months) | K88: As per FFR framework agreement | L88: 2300 | M88: 700 | N88: 8 | O88: 2300 | P88: 700 | Q88: 8 | R88: 2300 | S88: 700 | T88: 8 | U88: 7.83 | AC88: 0.4 | AD88: 1 | AE88: 1 | AF88: 0.4 | AG88: 1 | AH88: 0.4 | AI88: 1 | AP88: H for only 30min
A89: =A88+0.001 -> 131.083 | B89: Accepted | C89: NA | D89: Social Energy Limited | E89: SOC6-FFR | F89: DNO connection | G89: DSF: Storage (onsite) | H89: 2020-12-01 | I89: 2020-12-31 | J89: 01.12.20 - 31.12.20 (1 months) | K89: As per FFR framework agreement | L89: 700 | M89: 1500 | N89: 8 | O89: 700 | P89: 1500 | Q89: 8 | R89: 700 | S89: 1500 | T89: 8 | U89: 8.42 | AC89: 0.4 | AD89: 1 | AE89: 1 | AF89: 0.4 | AG89: 1 | AH89: 0.4 | AI89: 1 | AP89: H for only 30min
A90: 131.084 | B90: Rejected | C90: 2 | D90: Social Energy Limited | E90: SOC6-FFR | F90: DNO connection | G90: DSF: Storage (onsite) | H90: 2020-12-01 | I90: 2020-12-31 | J90: 01.12.20 - 31.12.20 (1 months) | K90: As per FFR framework agreement | L90: 1500 | M90: 2300 | N90: 8 | O90: 1500 | P90: 2300 | Q90: 8 | R90: 1500 | S90: 2300 | T90: 8 | U90: 17.62 | AC90: 0.4 | AD90: 1 | AE90: 1 | AF90: 0.4 | AG90: 1 | AH90: 0.4 | AI90: 1 | AP90: H for only 30min
A91: 131.085 | B91: Accepted | C91: NA | D91: Social Energy Limited | E91: SOC7-FFR | F91: DNO connection | G91: DSF: Storage (onsite) | H91: 2020-11-30 | I91: 2020-12-31 | J91: 30.11.20 - 31.12.20 (1 months) | K91: As per FFR framework agreement | L91: 2300 | M91: 700 | N91: 8 | O91: 2300 | P91: 700 | Q91: 8 | R91: 2300 | S91: 700 | T91: 8 | U91: 8.01 | AC91: 0.4 | AD91: 1 | AE91: 1 | AF91: 0.4 | AG91: 1 | AH91: 0.4 | AI91: 1 | AP91: H for only 30min
A92: 131.086 | B92: Accepted | C92: NA | D92: Social Energy Limited | E92: SOC7-FFR | F92: DNO connection | G92: DSF: Storage (onsite) | H92: 2020-12-01 | I92: 2020-12-31 | J92: 01.12.20 - 31.12.20 (1 months) | K92: As per FFR framework agreement | L92: 700 | M92: 1500 | N92: 8 | O92: 700 | P92: 1500 | Q92: 8 | R92: 700 | S92: 1500 | T92: 8 | U92: 8.04 | AC92: 0.4 | AD92: 1 | AE92: 1 | AF92: 0.4 | AG92: 1 | AH92: 0.4 | AI92: 1 | AP92: H for only 30min
A93: =A92+0.001 -> 131.087 | B93: Rejected | C93: 2 | D93: Social Energy Limited | E93: SOC7-FFR | F93: DNO connection | G93: DSF: Storage (onsite) | H93: 2020-12-01 | I93: 2020-12-31 | J93: 01.12.20 - 31.12.20 (1 months) | K93: As per FFR framework agreement | L93: 1500 | M93: 2300 | N93: 8 | O93: 1500 | P93: 2300 | Q93: 8 | R93: 1500 | S93: 2300 | T93: 8 | U93: 19.01 | AC93: 0.4 | AD93: 1 | AE93: 1 | AF93: 0.4 | AG93: 1 | AH93: 0.4 | AI93: 1 | AP93: H for only 30min
A94: 131.088 | B94: Accepted | C94: NA | D94: Pelham Storage Limited | E94: PLHM-1 | F94: DNO connection | G94: DSF: Storage (for export) | H94: 2020-11-30 | I94: 2020-12-31 | J94: 30.11.20 - 31.12.20 (1 months) | K94: As per FFR framework agreement | L94: 2300 | M94: 700 | N94: =IF(L94>M94, (2400-L94+M94)/100, IF(AND(L94="",M94="",L94=M94), "", IF(L94=M94,24,(M94-L94)/100))) -> 8 | O94: 2300 | P94: 700 | Q94: =IF(O94>P94, (2400-O94+P94)/100, IF(AND(O94="",P94="",O94=P94), "", IF(O94=P94,24,(P94-O94)/100))) -> 8 | R94: 2300 | S94: 700 | T94: =IF(R94>S94, (2400-R94+S94)/100, IF(AND(R94="",S94="",R94=S94), "", IF(R94=S94,24,(S94-R94)/100))) -> 8 | U94: 343.6 | AC94: 18.4 | AD94: 46 | AE94: 46 | AF94: 18.4 | AG94: 46 | AH94: 18.4 | AI94: 46
A95: 131.089 | B95: Accepted | C95: NA | D95: Pelham Storage Limited | E95: PLHM-1 | F95: DNO connection | G95: DSF: Storage (for export) | H95: 2020-12-01 | I95: 2020-12-31 | J95: 01.12.20 - 31.12.20 (1 months) | K95: As per FFR framework agreement | L95: 700 | M95: 1500 | N95: =IF(L95>M95, (2400-L95+M95)/100, IF(AND(L95="",M95="",L95=M95), "", IF(L95=M95,24,(M95-L95)/100))) -> 8 | O95: 700 | P95: 1500 | Q95: =IF(O95>P95, (2400-O95+P95)/100, IF(AND(O95="",P95="",O95=P95), "", IF(O95=P95,24,(P95-O95)/100))) -> 8 | R95: 700 | S95: 1500 | T95: =IF(R95>S95, (2400-R95+S95)/100, IF(AND(R95="",S95="",R95=S95), "", IF(R95=S95,24,(S95-R95)/100))) -> 8 | U95: 407.5 | AC95: 19.2 | AD95: 48 | AE95: 48 | AF95: 19.2 | AG95: 48 | AH95: 19.2 | AI95: 48
A96: 131.09 | B96: Accepted | C96: NA | D96: Pelham Storage Limited | E96: PLHM-1 | F96: DNO connection | G96: DSF: Storage (for export) | H96: 2020-12-01 | I96: 2020-12-31 | J96: 01.12.20 - 31.12.20 (1 months) | K96: As per FFR framework agreement | L96: 1500 | M96: 2300 | N96: 8 | O96: 1500 | P96: 2300 | Q96: 8 | R96: 1500 | S96: 2300 | T96: 8 | U96: 367 | AC96: 12.8 | AD96: 32 | AE96: 32 | AF96: 12.8 | AG96: 32 | AH96: 12.8 | AI96: 32
A97: 131.091 | B97: Accepted | C97: NA | D97: Statkraft Markets GmbH | E97: SKFT-1 | F97: DNO Connection | G97: DSF: Storage (for export) | H97: 2020-12-01 | I97: 2020-12-31 | J97: 01.12.20 - 31.12.20 (1 months) | K97: As per FFR framework agreement | L97: 700 | M97: 1500 | N97: =IF(L97>M97, (2400-L97+M97)/100, IF(AND(L97="",M97="",L97=M97), "", IF(L97=M97,24,(M97-L97)/100))) -> 8 | O97: 700 | P97: 1500 | Q97: =IF(O97>P97, (2400-O97+P97)/100, IF(AND(O97="",P97="",O97=P97), "", IF(O97=P97,24,(P97-O97)/100))) -> 8 | R97: 700 | S97: 1500 | T97: =IF(R97>S97, (2400-R97+S97)/100, IF(AND(R97="",S97="",R97=S97), "", IF(R97=S97,24,(S97-R97)/100))) -> 8 | U97: 44.7 | AC97: 2 | AD97: 5 | AE97: 5 | AF97: 2 | AG97: 5 | AH97: 2 | AI97: 5
A98: 131.092 | B98: Rejected | C98: 2 | D98: Statkraft Markets GmbH | E98: SKFT-1 | F98: DNO Connection | G98: DSF: Storage (for export) | H98: 2020-12-01 | I98: 2020-12-31 | J98: 01.12.20 - 31.12.20 (1 months) | K98: As per FFR framework agreement | L98: 1500 | M98: 2300 | N98: =IF(L98>M98, (2400-L98+M98)/100, IF(AND(L98="",M98="",L98=M98), "", IF(L98=M98,24,(M98-L98)/100))) -> 8 | O98: 1500 | P98: 2300 | Q98: =IF(O98>P98, (2400-O98+P98)/100, IF(AND(O98="",P98="",O98=P98), "", IF(O98=P98,24,(P98-O98)/100))) -> 8 | R98: 1500 | S98: 2300 | T98: =IF(R98>S98, (2400-R98+S98)/100, IF(AND(R98="",S98="",R98=S98), "", IF(R98=S98,24,(S98-R98)/100))) -> 8 | U98: 53.67 | AC98: 1.2 | AD98: 3 | AE98: 3 | AF98: 1.2 | AG98: 3 | AH98: 1.2 | AI98: 3
A99: 131.093 | B99: Accepted | C99: NA | D99: Statkraft Markets GmbH | E99: AG-MSTK01 | F99: DNO Connection | G99: DSF: Storage (for export) | H99: 2020-11-30 | I99: 2020-12-31 | J99: 30.11.20 - 31.12.20 (1 months) | K99: As per FFR framework agreement | L99: 2300 | M99: 700 | N99: 8 | O99: 2300 | P99: 700 | Q99: 8 | R99: 2300 | S99: 700 | T99: 8 | U99: 352.5 | AC99: 18.8 | AD99: 47 | AE99: 47 | AF99: 18.8 | AG99: 47 | AH99: 18.8 | AI99: 47 | AL99: A
A100: 131.094 | B100: Accepted | C100: NA | D100: Statkraft Markets GmbH | E100: AG-MSTK01 | F100: DNO Connection | G100: DSF: Storage (for export) | H100: 2020-12-01 | I100: 2020-12-31 | J100: 01.12.20 - 31.12.20 (1 months) | K100: As per FFR framework agreement | L100: 700 | M100: 1500 | N100: 8 | O100: 700 | P100: 1500 | Q100: 8 | R100: 700 | S100: 1500 | T100: 8 | U100: 399.5 | AC100: 18.8 | AD100: 47 | AE100: 47 | AF100: 18.8 | AG100: 47 | AH100: 18.8 | AI100: 47 | AL100: A
A101: 131.095 | B101: Accepted | C101: NA | D101: Statkraft Markets GmbH | E101: AG-MSTK01 | F101: DNO Connection | G101: DSF: Storage (for export) | H101: 2020-12-01 | I101: 2020-12-31 | J101: 01.12.20 - 31.12.20 (1 months) | K101: As per FFR framework agreement | L101: 1500 | M101: 2300 | N101: 8 | O101: 1500 | P101: 2300 | Q101: 8 | R101: 1500 | S101: 2300 | T101: 8 | U101: 700 | AC101: 16 | AD101: 40 | AE101: 40 | AF101: 16 | AG101: 40 | AH101: 16 | AI101: 40 | AL101: A
A102: 131.096 | B102: Rejected | C102: 2 | D102: UK Power Reserve Ltd | E102: AFFR1 | F102: DNO connection | G102: DSF: Storage (for export) | H102: 2020-11-30 | I102: 2020-12-31 | J102: 30.11.20 - 31.12.20 (1 months) | K102: As per FFR framework agreement | L102: 2300 | M102: 2300 | N102: =IF(L102>M102, (2400-L102+M102)/100, IF(AND(L102="",M102="",L102=M102), "", IF(L102=M102,24,(M102-L102)/100))) -> 24 | O102: 2300 | P102: 2300 | Q102: =IF(O102>P102, (2400-O102+P102)/100, IF(AND(O102="",P102="",O102=P102), "", IF(O102=P102,24,(P102-O102)/100))) -> 24 | R102: 2300 | S102: 2300 | T102: =IF(R102>S102, (2400-R102+S102)/100, IF(AND(R102="",S102="",R102=S102), "", IF(R102=S102,24,(S102-R102)/100))) -> 24 | U102: =22.54*20 -> 450.8 | AC102: 8 | AD102: 20 | AE102: 20 | AF102: 8 | AG102: 20 | AH102: 8 | AI102: 20
A103: 131.097 | B103: Rejected | C103: 2 | D103: UK Power Reserve Ltd | E103: AFFR2 | F103: DNO connection | G103: DSF: Storage (for export) | H103: 2020-11-30 | I103: 2020-12-31 | J103: 30.11.20 - 31.12.20 (1 months) | K103: As per FFR framework agreement | L103: 2300 | M103: 2300 | N103: =IF(L103>M103, (2400-L103+M103)/100, IF(AND(L103="",M103="",L103=M103), "", IF(L103=M103,24,(M103-L103)/100))) -> 24 | O103: 2300 | P103: 2300 | Q103: =IF(O103>P103, (2400-O103+P103)/100, IF(AND(O103="",P103="",O103=P103), "", IF(O103=P103,24,(P103-O103)/100))) -> 24 | R103: 2300 | S103: 2300 | T103: =IF(R103>S103, (2400-R103+S103)/100, IF(AND(R103="",S103="",R103=S103), "", IF(R103=S103,24,(S103-R103)/100))) -> 24 | U103: =25.84*20 -> 516.8 | AC103: 8 | AD103: 20 | AE103: 20 | AF103: 8 | AG103: 20 | AH103: 8 | AI103: 20
A104: 131.098 | B104: Rejected | C104: 2 | D104: UK Power Reserve Ltd | E104: AFFR3 | F104: DNO connection | G104: DSF: Storage (for export) | H104: 2020-11-30 | I104: 2020-12-31 | J104: 30.11.20 - 31.12.20 (1 months) | K104: As per FFR framework agreement | L104: 2300 | M104: 2300 | N104: =IF(L104>M104, (2400-L104+M104)/100, IF(AND(L104="",M104="",L104=M104), "", IF(L104=M104,24,(M104-L104)/100))) -> 24 | O104: 2300 | P104: 2300 | Q104: =IF(O104>P104, (2400-O104+P104)/100, IF(AND(O104="",P104="",O104=P104), "", IF(O104=P104,24,(P104-O104)/100))) -> 24 | R104: 2300 | S104: 2300 | T104: =IF(R104>S104, (2400-R104+S104)/100, IF(AND(R104="",S104="",R104=S104), "", IF(R104=S104,24,(S104-R104)/100))) -> 24 | U104: =23.32*20 -> 466.4 | AC104: 8 | AD104: 20 | AE104: 20 | AF104: 8 | AG104: 20 | AH104: 8 | AI104: 20
A105: 131.099 | B105: Rejected | C105: 2 | D105: BESS HoldCo 2 Ltd | E105: DBESS-22 | F105: DNO connection | G105: Battery | H105: 2020-12-01 | I105: 2020-12-31 | J105: 01.12.20 - 31.12.20 (1 months) | K105: As per FFR framework agreement | L105: 700 | M105: 2300 | N105: =IF(L105>M105, (2400-L105+M105)/100, IF(AND(L105="",M105="",L105=M105), "", IF(L105=M105,24,(M105-L105)/100))) -> 16 | O105: 700 | P105: 2300 | Q105: =IF(O105>P105, (2400-O105+P105)/100, IF(AND(O105="",P105="",O105=P105), "", IF(O105=P105,24,(P105-O105)/100))) -> 16 | R105: 700 | S105: 2300 | T105: =IF(R105>S105, (2400-R105+S105)/100, IF(AND(R105="",S105="",R105=S105), "", IF(R105=S105,24,(S105-R105)/100))) -> 16 | U105: 225 | AC105: 4 | AD105: 10 | AE105: 10 | AF105: 4 | AG105: 10 | AH105: 4 | AI105: 10 | AL105: A
A106: 131.1 | B106: Rejected | C106: 2 | D106: BESS HoldCo 3 Ltd | E106: DBESSH-33 | F106: DNO connection | G106: Battery | H106: 2020-11-30 | I106: 2020-12-31 | J106: 30.11.20 - 31.12.20 (1 months) | K106: As per FFR framework agreement | L106: 2300 | M106: 2300 | N106: =IF(L106>M106, (2400-L106+M106)/100, IF(AND(L106="",M106="",L106=M106), "", IF(L106=M106,24,(M106-L106)/100))) -> 24 | O106: 2300 | P106: 2300 | Q106: =IF(O106>P106, (2400-O106+P106)/100, IF(AND(O106="",P106="",O106=P106), "", IF(O106=P106,24,(P106-O106)/100))) -> 24 | R106: 2300 | S106: 2300 | T106: =IF(R106>S106, (2400-R106+S106)/100, IF(AND(R106="",S106="",R106=S106), "", IF(R106=S106,24,(S106-R106)/100))) -> 24 | U106: 170 | AC106: 4 | AD106: 10 | AE106: 10 | AF106: 4 | AG106: 10 | AH106: 4 | AI106: 10 | AL106: B
A107: 131.101 | B107: Rejected | C107: 2 | D107: BESS HoldCo 3 Ltd | E107: DBESSA-33 | F107: DNO connection | G107: Battery | H107: 2020-11-30 | I107: 2020-12-31 | J107: 30.11.20 - 31.12.20 (1 months) | K107: As per FFR framework agreement | L107: 2300 | M107: 700 | N107: 8 | O107: 2300 | P107: 700 | Q107: 8 | R107: 2300 | S107: 700 | T107: 8 | U107: 63 | AC107: 3.6 | AD107: 9 | AE107: 9 | AF107: 3.6 | AG107: 9 | AH107: 3.6 | AI107: 9 | AL107: C
A108: 131.102 | B108: Rejected | C108: 2 | D108: BESS HoldCo 3 Ltd | E108: DBESSA-33 | F108: DNO connection | G108: Battery | H108: 2020-12-01 | I108: 2020-12-31 | J108: 01.12.20 - 31.12.20 (1 months) | K108: As per FFR framework agreement | L108: 700 | M108: 2300 | N108: 16 | O108: 700 | P108: 2300 | Q108: 16 | R108: 700 | S108: 2300 | T108: 16 | U108: 202.5 | AC108: 3.6 | AD108: 9 | AE108: 9 | AF108: 3.6 | AG108: 9 | AH108: 3.6 | AI108: 9 | AL108: C
A109: 131.103 | B109: Rejected | C109: 2 | D109: BESS HoldCo 3 Ltd | E109: DBESSC-33 | F109: DNO connection | G109: Battery | H109: 2020-11-30 | I109: 2020-12-31 | J109: 30.11.20 - 31.12.20 (1 months) | K109: As per FFR framework agreement | L109: 2300 | M109: 700 | N109: 8 | O109: 2300 | P109: 700 | Q109: 8 | R109: 2300 | S109: 700 | T109: 8 | U109: 70 | AC109: 4 | AD109: 10 | AE109: 10 | AF109: 4 | AG109: 10 | AH109: 4 | AI109: 10 | AL109: D
A110: 131.104 | B110: Rejected | C110: 2 | D110: BESS HoldCo 3 Ltd | E110: DBESSC-33 | F110: DNO connection | G110: Battery | H110: 2020-12-01 | I110: 2020-12-31 | J110: 01.12.20 - 31.12.20 (1 months) | K110: As per FFR framework agreement | L110: 700 | M110: 2300 | N110: 16 | O110: 700 | P110: 2300 | Q110: 16 | R110: 700 | S110: 2300 | T110: 16 | U110: 225 | AC110: 4 | AD110: 10 | AE110: 10 | AF110: 4 | AG110: 10 | AH110: 4 | AI110: 10 | AL110: D
A111: 131.105 | B111: Rejected | C111: 2 | D111: BESS HoldCo 3 Ltd | E111: DBESSF-33 | F111: DNO connection | G111: Battery | H111: 2020-11-30 | I111: 2020-12-31 | J111: 30.11.20 - 31.12.20 (1 months) | K111: As per FFR framework agreement | L111: 2300 | M111: 700 | N111: 8 | O111: 2300 | P111: 700 | Q111: 8 | R111: 2300 | S111: 700 | T111: 8 | U111: 70 | AC111: 4 | AD111: 10 | AE111: 10 | AF111: 4 | AG111: 10 | AH111: 4 | AI111: 10 | AL111: E
A112: 131.106 | B112: Rejected | C112: 2 | D112: BESS HoldCo 3 Ltd | E112: DBESSF-33 | F112: DNO connection | G112: Battery | H112: 2020-12-01 | I112: 2020-12-31 | J112: 01.12.20 - 31.12.20 (1 months) | K112: As per FFR framework agreement | L112: 700 | M112: 2300 | N112: 16 | O112: 700 | P112: 2300 | Q112: 16 | R112: 700 | S112: 2300 | T112: 16 | U112: 225 | AC112: 4 | AD112: 10 | AE112: 10 | AF112: 4 | AG112: 10 | AH112: 4 | AI112: 10 | AL112: E
A113: 131.107 | B113: Accepted | C113: NA | D113: Limejump Energy Ltd | E113: AG-BLIM02 | F113: TO connection | G113: DSF: Storage (for export) | H113: 2020-11-30 | I113: 2020-12-31 | J113: 30.11.20 - 31.12.20 (1 months) | K113: As per FFR framework agreement | L113: 2300 | M113: 700 | N113: =IF(L113>M113, (2400-L113+M113)/100, IF(AND(L113="",M113="",L113=M113), "", IF(L113=M113,24,(M113-L113)/100))) -> 8 | O113: 2300 | P113: 700 | Q113: =IF(O113>P113, (2400-O113+P113)/100, IF(AND(O113="",P113="",O113=P113), "", IF(O113=P113,24,(P113-O113)/100))) -> 8 | R113: 2300 | S113: 700 | T113: =IF(R113>S113, (2400-R113+S113)/100, IF(AND(R113="",S113="",R113=S113), "", IF(R113=S113,24,(S113-R113)/100))) -> 8 | U113: 100.1 | AC113: 4.4 | AD113: 11 | AE113: 11 | AF113: 4.4 | AG113: 11 | AH113: 4.4 | AI113: 11 | AP113: H for 30 minutes only
A114: 131.108 | B114: Accepted | C114: NA | D114: Limejump Energy Ltd | E114: AG-BLIM02 | F114: TO connection | G114: DSF: Storage (for export) | H114: 2020-12-01 | I114: 2020-12-31 | J114: 01.12.20 - 31.12.20 (1 months) | K114: As per FFR framework agreement | L114: 700 | M114: 1500 | N114: =IF(L114>M114, (2400-L114+M114)/100, IF(AND(L114="",M114="",L114=M114), "", IF(L114=M114,24,(M114-L114)/100))) -> 8 | O114: 700 | P114: 1500 | Q114: =IF(O114>P114, (2400-O114+P114)/100, IF(AND(O114="",P114="",O114=P114), "", IF(O114=P114,24,(P114-O114)/100))) -> 8 | R114: 700 | S114: 1500 | T114: =IF(R114>S114, (2400-R114+S114)/100, IF(AND(R114="",S114="",R114=S114), "", IF(R114=S114,24,(S114-R114)/100))) -> 8 | U114: 103.5 | AC114: 4 | AD114: 10 | AE114: 10 | AF114: 4 | AG114: 10 | AH114: 4 | AI114: 10 | AP114: H for 30 minutes only
A115: 131.109 | B115: Accepted | C115: NA | D115: Limejump Energy Ltd | E115: AG-BLIM02 | F115: TO connection | G115: DSF: Storage (for export) | H115: 2020-12-01 | I115: 2020-12-31 | J115: 01.12.20 - 31.12.20 (1 months) | K115: As per FFR framework agreement | L115: 1500 | M115: 2300 | N115: 8 | O115: 1500 | P115: 2300 | Q115: 8 | R115: 1500 | S115: 2300 | T115: 8 | U115: 122 | AC115: 4 | AD115: 10 | AE115: 10 | AF115: 4 | AG115: 10 | AH115: 4 | AI115: 10 | AP115: H for 30 minutes only
A116: 131.11 | B116: Accepted | C116: NA | D116: Limejump Energy Ltd | E116: AG-FLIM01 | F116: TO connection | G116: DSF: Storage (for export) | H116: 2020-11-30 | I116: 2020-12-31 | J116: 30.11.20 - 31.12.20 (1 months) | K116: As per FFR framework agreement | L116: 2300 | M116: 700 | N116: 8 | O116: 2300 | P116: 700 | Q116: 8 | R116: 2300 | S116: 700 | T116: 8 | U116: 64.33 | AC116: 2.8 | AD116: 7 | AE116: 7 | AF116: 2.8 | AG116: 7 | AH116: 2.8 | AI116: 7 | AP116: H for 30 minutes only
A117: 131.111 | B117: Accepted | C117: NA | D117: Limejump Energy Ltd | E117: AG-FLIM01 | F117: TO connection | G117: DSF: Storage (for export) | H117: 2020-12-01 | I117: 2020-12-31 | J117: 01.12.20 - 31.12.20 (1 months) | K117: As per FFR framework agreement | L117: 700 | M117: 1500 | N117: 8 | O117: 700 | P117: 1500 | Q117: 8 | R117: 700 | S117: 1500 | T117: 8 | U117: 73.08 | AC117: 2.8 | AD117: 7 | AE117: 7 | AF117: 2.8 | AG117: 7 | AH117: 2.8 | AI117: 7 | AP117: H for 30 minutes only
A118: 131.112 | B118: Accepted | C118: NA | D118: Limejump Energy Ltd | E118: AG-FLIM01 | F118: TO connection | G118: DSF: Storage (for export) | H118: 2020-12-01 | I118: 2020-12-31 | J118: 01.12.20 - 31.12.20 (1 months) | K118: As per FFR framework agreement | L118: 1500 | M118: 2300 | N118: 8 | O118: 1500 | P118: 2300 | Q118: 8 | R118: 1500 | S118: 2300 | T118: 8 | U118: 86.03 | AC118: 2.8 | AD118: 7 | AE118: 7 | AF118: 2.8 | AG118: 7 | AH118: 2.8 | AI118: 7 | AP118: H for 30 minutes only
A119: 131.113 | B119: Accepted | C119: NA | D119: Limejump Energy Ltd | E119: AG-GLIM01 | F119: TO connection | G119: DSF: Storage (for export) | H119: 2020-11-30 | I119: 2020-12-31 | J119: 30.11.20 - 31.12.20 (1 months) | K119: As per FFR framework agreement | L119: 2300 | M119: 700 | N119: 8 | O119: 2300 | P119: 700 | Q119: 8 | R119: 2300 | S119: 700 | T119: 8 | U119: 18.24 | AC119: 0.8 | AD119: 2 | AE119: 2 | AF119: 0.8 | AG119: 2 | AH119: 0.8 | AI119: 2 | AP119: H for 30 minutes only
A120: 131.114 | B120: Accepted | C120: NA | D120: Limejump Energy Ltd | E120: AG-GLIM01 | F120: TO connection | G120: DSF: Storage (for export) | H120: 2020-12-01 | I120: 2020-12-31 | J120: =IFERROR(TEXT(H120,"DD.MM.YY")&" - "&TEXT(I120,"DD.MM.YY")&" ("&DATEDIF(H120,I120+1,"m")&" months)","Tender End Date is Before Start Date") -> 01.12.20 - 31.12.20 (1 months) | K120: As per FFR framework agreement | L120: 700 | M120: 1500 | N120: 8 | O120: 700 | P120: 1500 | Q120: 8 | R120: 700 | S120: 1500 | T120: 8 | U120: 20.74 | AC120: 0.8 | AD120: 2 | AE120: 2 | AF120: 0.8 | AG120: 2 | AH120: 0.8 | AI120: 2 | AP120: H for 30 minutes only
A121: 131.115 | B121: Accepted | C121: NA | D121: Limejump Energy Ltd | E121: AG-GLIM01 | F121: TO connection | G121: DSF: Storage (for export) | H121: 2020-12-01 | I121: 2020-12-31 | J121: =IFERROR(TEXT(H121,"DD.MM.YY")&" - "&TEXT(I121,"DD.MM.YY")&" ("&DATEDIF(H121,I121+1,"m")&" months)","Tender End Date is Before Start Date") -> 01.12.20 - 31.12.20 (1 months) | K121: As per FFR framework agreement | L121: 1500 | M121: 2300 | N121: 8 | O121: 1500 | P121: 2300 | Q121: 8 | R121: 1500 | S121: 2300 | T121: 8 | U121: 24.44 | AC121: 0.8 | AD121: 2 | AE121: 2 | AF121: 0.8 | AG121: 2 | AH121: 0.8 | AI121: 2 | AP121: H for 30 minutes only
A122: 131.116 | B122: Accepted | C122: NA | D122: Limejump Energy Ltd | E122: AG-HLIM01 | F122: TO connection | G122: DSF: Storage (for export) | H122: 2020-11-30 | I122: 2020-12-31 | J122: 30.11.20 - 31.12.20 (1 months) | K122: As per FFR framework agreement | L122: 2300 | M122: 700 | N122: 8 | O122: 2300 | P122: 700 | Q122: 8 | R122: 2300 | S122: 700 | T122: 8 | U122: 27.51 | AC122: 1.2 | AD122: 3 | AE122: 3 | AF122: 1.2 | AG122: 3 | AH122: 1.2 | AI122: 3 | AP122: H for 30 minutes only
A123: 131.117 | B123: Accepted | C123: NA | D123: Limejump Energy Ltd | E123: AG-HLIM01 | F123: TO connection | G123: DSF: Storage (for export) | H123: 2020-12-01 | I123: 2020-12-31 | J123: 01.12.20 - 31.12.20 (1 months) | K123: As per FFR framework agreement | L123: 700 | M123: 1500 | N123: 8 | O123: 700 | P123: 1500 | Q123: 8 | R123: 700 | S123: 1500 | T123: 8 | U123: 31.26 | AC123: 1.2 | AD123: 3 | AE123: 3 | AF123: 1.2 | AG123: 3 | AH123: 1.2 | AI123: 3 | AP123: H for 30 minutes only
A124: 131.118 | B124: Accepted | C124: NA | D124: Limejump Energy Ltd | E124: AG-HLIM01 | F124: TO connection | G124: DSF: Storage (for export) | H124: 2020-12-01 | I124: 2020-12-31 | J124: 01.12.20 - 31.12.20 (1 months) | K124: As per FFR framework agreement | L124: 1500 | M124: 2300 | N124: 8 | O124: 1500 | P124: 2300 | Q124: 8 | R124: 1500 | S124: 2300 | T124: 8 | U124: 36.81 | AC124: 1.2 | AD124: 3 | AE124: 3 | AF124: 1.2 | AG124: 3 | AH124: 1.2 | AI124: 3 | AP124: H for 30 minutes only
A125: 131.119 | B125: Accepted | C125: NA | D125: Limejump Energy Ltd | E125: AG-ELIM02 | F125: TO connection | G125: DSF: Storage (for export) | H125: 2020-11-30 | I125: 2020-12-31 | J125: 30.11.20 - 31.12.20 (1 months) | K125: As per FFR framework agreement | L125: 2300 | M125: 700 | N125: 8 | O125: 2300 | P125: 700 | Q125: 8 | R125: 2300 | S125: 700 | T125: 8 | U125: 27.39 | AC125: 1.2 | AD125: 3 | AE125: 3 | AF125: 1.2 | AG125: 3 | AH125: 1.2 | AI125: 3 | AP125: H for 30 minutes only
A126: 131.12 | B126: Accepted | C126: NA | D126: Limejump Energy Ltd | E126: AG-ELIM02 | F126: TO connection | G126: DSF: Storage (for export) | H126: 2020-12-01 | I126: 2020-12-31 | J126: 01.12.20 - 31.12.20 (1 months) | K126: As per FFR framework agreement | L126: 700 | M126: 1500 | N126: 8 | O126: 700 | P126: 1500 | Q126: 8 | R126: 700 | S126: 1500 | T126: 8 | U126: 31.14 | AC126: 1.2 | AD126: 3 | AE126: 3 | AF126: 1.2 | AG126: 3 | AH126: 1.2 | AI126: 3 | AP126: H for 30 minutes only
A127: 131.121 | B127: Accepted | C127: NA | D127: Limejump Energy Ltd | E127: AG-ELIM02 | F127: TO connection | G127: DSF: Storage (for export) | H127: 2020-12-01 | I127: 2020-12-31 | J127: 01.12.20 - 31.12.20 (1 months) | K127: As per FFR framework agreement | L127: 1500 | M127: 2300 | N127: 8 | O127: 1500 | P127: 2300 | Q127: 8 | R127: 1500 | S127: 2300 | T127: 8 | U127: 36.69 | AC127: 1.2 | AD127: 3 | AE127: 3 | AF127: 1.2 | AG127: 3 | AH127: 1.2 | AI127: 3 | AP127: H for 30 minutes only
A128: 131.122 | B128: Accepted | C128: NA | D128: Limejump Ltd | E128: LJDYN-2 | F128: DNO connection | G128: DSF: Storage (for export) | H128: 2020-11-30 | I128: 2020-12-31 | J128: 30.11.20 - 31.12.20 (1 months) | K128: As per FFR framework agreement | L128: 2300 | M128: 700 | N128: 8 | O128: 2300 | P128: 700 | Q128: 8 | R128: 2300 | S128: 700 | T128: 8 | U128: 46.05 | AC128: 2 | AD128: 5 | AE128: 5 | AF128: 2 | AG128: 5 | AH128: 2 | AI128: 5 | AP128: H for 30 minutes only
A129: 131.123 | B129: Accepted | C129: NA | D129: Limejump Ltd | E129: LJDYN-2 | F129: DNO connection | G129: DSF: Storage (for export) | H129: 2020-12-01 | I129: 2020-12-31 | J129: 01.12.20 - 31.12.20 (1 months) | K129: As per FFR framework agreement | L129: 700 | M129: 1500 | N129: 8 | O129: 700 | P129: 1500 | Q129: 8 | R129: 700 | S129: 1500 | T129: 8 | U129: 52.3 | AC129: 2 | AD129: 5 | AE129: 5 | AF129: 2 | AG129: 5 | AH129: 2 | AI129: 5 | AP129: H for 30 minutes only
A130: 131.124 | B130: Accepted | C130: NA | D130: Limejump Ltd | E130: LJDYN-2 | F130: DNO connection | G130: DSF: Storage (for export) | H130: 2020-12-01 | I130: 2020-12-31 | J130: 01.12.20 - 31.12.20 (1 months) | K130: As per FFR framework agreement | L130: 1500 | M130: 2300 | N130: 8 | O130: 1500 | P130: 2300 | Q130: 8 | R130: 1500 | S130: 2300 | T130: 8 | U130: 61.55 | AC130: 2 | AD130: 5 | AE130: 5 | AF130: 2 | AG130: 5 | AH130: 2 | AI130: 5 | AP130: H for 30 minutes only
A131: 131.125 | B131: Accepted | C131: NA | D131: Limejump Energy Ltd | E131: AG-ELIM03 | F131: TO connection | G131: DSF: Storage (for export) | H131: 2020-11-30 | I131: 2020-12-31 | J131: 30.11.20 - 31.12.20 (1 months) | K131: As per FFR framework agreement | L131: 2300 | M131: 700 | N131: 8 | O131: 2300 | P131: 700 | Q131: 8 | R131: 2300 | S131: 700 | T131: 8 | U131: 179.59 | AC131: 7.6 | AD131: 19 | AE131: 19 | AF131: 7.6 | AG131: 19 | AH131: 7.6 | AI131: 19 | AP131: H for 30 minutes only
A132: 131.126 | B132: Accepted | C132: NA | D132: Limejump Energy Ltd | E132: AG-ELIM03 | F132: TO connection | G132: DSF: Storage (for export) | H132: 2020-12-01 | I132: 2020-12-31 | J132: =IFERROR(TEXT(H132,"DD.MM.YY")&" - "&TEXT(I132,"DD.MM.YY")&" ("&DATEDIF(H132,I132+1,"m")&" months)","Tender End Date is Before Start Date") -> 01.12.20 - 31.12.20 (1 months) | K132: As per FFR framework agreement | L132: 700 | M132: 1500 | N132: 8 | O132: 700 | P132: 1500 | Q132: 8 | R132: 700 | S132: 1500 | T132: 8 | U132: 179.59 | AC132: 7.6 | AD132: 19 | AE132: 19 | AF132: 7.6 | AG132: 19 | AH132: 7.6 | AI132: 19 | AP132: H for 30 minutes only
A133: 131.127 | B133: Accepted | C133: NA | D133: Limejump Energy Ltd | E133: AG-ELIM03 | F133: TO connection | G133: DSF: Storage (for export) | H133: 2020-12-01 | I133: 2020-12-31 | J133: 01.12.20 - 31.12.20 (1 months) | K133: As per FFR framework agreement | L133: 1500 | M133: 2300 | N133: 8 | O133: 1500 | P133: 2300 | Q133: 8 | R133: 1500 | S133: 2300 | T133: 8 | U133: 198.55 | AC133: 7.6 | AD133: 19 | AE133: 19 | AF133: 7.6 | AG133: 19 | AH133: 7.6 | AI133: 19 | AP133: H for 30 minutes only
A134: 131.128 | B134: Rejected | C134: 4 | D134: Limejump Ltd | E134: LJDYP-2 | F134: DNO connection | G134: DSF: Storage (for export) | H134: 2020-12-01 | I134: 2020-12-31 | J134: 01.12.20 - 31.12.20 (1 months) | K134: As per FFR framework agreement | L134: 700 | M134: 1500 | N134: 8 | O134: 700 | P134: 1500 | Q134: 8 | R134: 700 | S134: 1500 | T134: 8 | U134: 229.8 | AC134: 8 | AD134: 20 | AE134: 20 | AF134: 8 | AG134: 20 | AH134: 8 | AI134: 20 | AL134: A | AM134: Cannot be accepted with C | AP134: H for 30 minutes only
A135: 131.129 | B135: Rejected | C135: 4 | D135: Limejump Ltd | E135: LJDYP-2 | F135: DNO connection | G135: DSF: Storage (for export) | H135: 2020-12-01 | I135: 2020-12-31 | J135: 01.12.20 - 31.12.20 (1 months) | K135: As per FFR framework agreement | L135: 1500 | M135: 2300 | N135: 8 | O135: 1500 | P135: 2300 | Q135: 8 | R135: 1500 | S135: 2300 | T135: 8 | U135: 239.8 | AC135: 8 | AD135: 20 | AE135: 20 | AF135: 8 | AG135: 20 | AH135: 8 | AI135: 20 | AL135: B | AM135: Cannot be accepted with C | AP135: H for 30 minutes only
A136: 131.13 | B136: Accepted | C136: NA | D136: Limejump Ltd | E136: LJDYP-2 | F136: DNO connection | G136: DSF: Storage (for export) | H136: 2020-12-01 | I136: 2020-12-31 | J136: 01.12.20 - 31.12.20 (1 months) | K136: As per FFR framework agreement | L136: 700 | M136: 2300 | N136: 16 | O136: 700 | P136: 2300 | Q136: 16 | R136: 700 | S136: 2300 | T136: 16 | U136: 234 | AC136: 8 | AD136: 20 | AE136: 20 | AF136: 8 | AG136: 20 | AH136: 8 | AI136: 20 | AL136: C | AM136: Cannot be accepted with A or B | AP136: H for 30 minutes only
A137: 131.131 | B137: Rejected | C137: 4 | D137: Limejump Ltd | E137: LJDYP-4 | F137: DNO connection | G137: DSF: Storage (for export) | H137: 2020-12-01 | I137: 2020-12-31 | J137: 01.12.20 - 31.12.20 (1 months) | K137: As per FFR framework agreement | L137: 700 | M137: 1500 | N137: 8 | O137: 700 | P137: 1500 | Q137: 8 | R137: 700 | S137: 1500 | T137: 8 | U137: 47.96 | AC137: 1.6 | AD137: 4 | AE137: 4 | AF137: 1.6 | AG137: 4 | AH137: 1.6 | AI137: 4 | AL137: D | AM137: Cannot be accepted with F | AP137: H for 30 minutes only
A138: 131.132 | B138: Rejected | C138: 4 | D138: Limejump Ltd | E138: LJDYP-4 | F138: DNO connection | G138: DSF: Storage (for export) | H138: 2020-12-01 | I138: 2020-12-31 | J138: 01.12.20 - 31.12.20 (1 months) | K138: As per FFR framework agreement | L138: 1500 | M138: 2300 | N138: 8 | O138: 1500 | P138: 2300 | Q138: 8 | R138: 1500 | S138: 2300 | T138: 8 | U138: 49.96 | AC138: 1.6 | AD138: 4 | AE138: 4 | AF138: 1.6 | AG138: 4 | AH138: 1.6 | AI138: 4 | AL138: E | AM138: Cannot be accepted with F | AP138: H for 30 minutes only
A139: 131.133 | B139: Accepted | C139: NA | D139: Limejump Ltd | E139: LJDYP-4 | F139: DNO connection | G139: DSF: Storage (for export) | H139: 2020-12-01 | I139: 2020-12-31 | J139: 01.12.20 - 31.12.20 (1 months) | K139: As per FFR framework agreement | L139: 700 | M139: 2300 | N139: 16 | O139: 700 | P139: 2300 | Q139: 16 | R139: 700 | S139: 2300 | T139: 16 | U139: 48.8 | AC139: 1.6 | AD139: 4 | AE139: 4 | AF139: 1.6 | AG139: 4 | AH139: 1.6 | AI139: 4 | AL139: F | AM139: Cannot be accepted with D or E | AP139: H for 30 minutes only
A141: Rejection Codes | B141: Code | D141: Reason
B142: 1 | C142: Beneficial | E142: 1.1 | F142: Req. satisifed by more beneficial bids
E143: 1.2 | F143: No outstanding req.
E144: 1.3 | F144: Desired procurement volume already met
E145: 1.4 | F145: Formed part of AON. Not collectively beneficial
B146: 2 | C146: Price not beneificial across tendered period
B147: 3 | C147: Does not meet tender prerequisites
B148: 4 | C148: Multiple tenders received for the same unit
B149: 5 | C149: Beyond desired procument volume
